{"text_format":"1","workbook":"xlsx","n_sheets":11,"sheets":["Summary","Converted","Converting","Consulting","New schs since 2013","Approved new schools","New schs awaiting approval","Maintained","Halted conversions","Stats","Lists"],"not_rendered":{"charts":0,"images":1,"macros":1,"external_links":0,"defined_names":10,"comments":9,"pivot_tables":6},"unopened":[],"bounds":{"document_bytes":16777216,"sheet_cells":100000,"rows_first":2000,"rows_last":500,"rows_between":2000,"halvings":0,"cell_chars":16384,"cell_head_chars":4096},"cells_cut":0,"cells_raw":0,"read":"whole","date_system":"1900"}

{"sheet":"Summary","index":0,"n_rows":17,"n_cols":3,"rows_kept":17,"cut":false,"hidden":false,"merged":[[1,1,1,2],[2,1,2,2],[3,1,3,2],[4,1,4,2],[5,1,5,2]]}
[]
[null,"Academies Programme update"]
[null,"June 2024"]
[null,"This report details Oxfordshire schools that have converted to academy status and new schools that have opened since the beginning of the academies programme (2013), as well as those currently in progress.  The report is updated each month and the most recent version can be found on the Academies Programme webpage at the link below:"]
[null,"Academies update"]
[null,"Please Note: New entries and updates/amendments from the previous month are highlighted in red.  "]
[null,"Tab name:","Tab Information: "]
[null,"Converted","Schools that have converted, type of conversion (voluntary or sponsored), date of conversion, Trust details and change of Trust (rebrokering).  All updates will appear at the top of the table and will be highlighted in red.  See comments column for update reason."]
[null,"Converting","Schools that have an academy order and are in the process of converting and those schools with an academy order where a date for conversion is delayed or not yet agreed."]
[null,"Consulting","Schools that have advised the LA they are currently consulting on becoming an academy, schools that have submitted an Expression of Interest (EOI)to the DfE,  and those that have submitted an application to convert to the DfE."]
[null,"New Schs since 2013","New schools that have opened since 2013 (start of academies programme) including any changes to trust (rebrokering) "]
[null,"Approved new schools","New schools that have Capital funding approval"]
[null,"New Schools awaiting approval","Proposed new schools that do not yet have Capital approval"]
[null,"Maintained","Schools that are currently maintained by the LA"]
[null,"Halted Conversions","Schools that have previously consulted on converting, but are taking no further action."]
[null,"Stats","Total number of Schools by phase and type (ie Academy/Maintained) including percentages"]
[null,"Lists","Academy trusts and their company numbers and trusts that have been approved as sponsors."]

{"sheet":"Converted","index":1,"n_rows":218,"n_cols":17,"rows_kept":218,"cut":false,"hidden":false,"merged":[]}
["Name of converted establishment","Previous name","Phase","Age range","Company number","DfE code","Old DfE code","Old company name and number","Completion Date","Acad year converted","Type of Conversion - Voluntary or Sponsored","Type of Trust","Trust / sponsor details","Schools in Sponsor Trusts","Approved School Sponsor","Additional Comments","Last updated"]
["Badgemore Community School",null,"Pri","4-11","11031096",2513,null,null,"2024-05-01",{"$f":"IF(AND(I2>=39326,I2<=39691),\"2007/08\",IF(AND(I2>=39692,I2<=40056),\"2008/09\",IF(AND(I2>=40057,I2<=40421),\"2009/10\",IF(AND(I2>=40422,I2<=40786),\"2010/11\",IF(AND(I2>=40787,I2<=41152),\"2011/12\",IF(AND(I2>=41153,I2<=41517),\"2012/13\",IF(AND(I2>=41518,I2<=41882),\"2013/14\",IF(AND(I2>=41883,I2<=42247),\"2014/15\",IF(AND(I2>=42248,I2<=42613),\"2015/16\",IF(AND(I2>=42614,I2<=42978),\"2016/17\",IF(AND(I2>=42979,I2<=43343),\"2017/18\",IF(AND(I2>=43344,I2<=43708),\"2018/19\"\"date out of scope - rewrite formula\"))))))))))))","v":false},"Voluntary Converter","MAT","The Circle Trust",{"$f":"IF(COUNTIF(SponsorTrusts,M2)=0,\"\",\"Y\")","v":""},null,null,"2024-05-01"]
["Carterton Primary School ",null,"Pri","3-11","08104201",2044,2252,null,"2024-04-01",{"$f":"IF(AND(I3>=39326,I3<=39691),\"2007/08\",IF(AND(I3>=39692,I3<=40056),\"2008/09\",IF(AND(I3>=40057,I3<=40421),\"2009/10\",IF(AND(I3>=40422,I3<=40786),\"2010/11\",IF(AND(I3>=40787,I3<=41152),\"2011/12\",IF(AND(I3>=41153,I3<=41517),\"2012/13\",IF(AND(I3>=41518,I3<=41882),\"2013/14\",IF(AND(I3>=41883,I3<=42247),\"2014/15\",IF(AND(I3>=42248,I3<=42613),\"2015/16\",IF(AND(I3>=42614,I3<=42978),\"2016/17\",IF(AND(I3>=42979,I3<=43343),\"2017/18\",IF(AND(I3>=43344,I3<=43708),\"2018/19\"\"date out of scope - rewrite formula\"))))))))))))","v":false},"Sponsored Academy brokered by DfE","MAT","Ridgeway Education Trust",{"$f":"IF(COUNTIF(SponsorTrusts,M3)=0,\"\",\"Y\")","v":"Y"},null,null,"2024-03-01"]
["St Francis CofE Primary School",null,"Pri","3-11","08143249",3253,null,null,"2024-04-01",{"$f":"IF(AND(I4>=39326,I4<=39691),\"2007/08\",IF(AND(I4>=39692,I4<=40056),\"2008/09\",IF(AND(I4>=40057,I4<=40421),\"2009/10\",IF(AND(I4>=40422,I4<=40786),\"2010/11\",IF(AND(I4>=40787,I4<=41152),\"2011/12\",IF(AND(I4>=41153,I4<=41517),\"2012/13\",IF(AND(I4>=41518,I4<=41882),\"2013/14\",IF(AND(I4>=41883,I4<=42247),\"2014/15\",IF(AND(I4>=42248,I4<=42613),\"2015/16\",IF(AND(I4>=42614,I4<=42978),\"2016/17\",IF(AND(I4>=42979,I4<=43343),\"2017/18\",IF(AND(I4>=43344,I4<=43708),\"2018/19\"\"date out of scope - rewrite formula\"))))))))))))","v":false},"Voluntary Converter","MAT","Oxford Diocesan Schools Trust",{"$f":"IF(COUNTIF(SponsorTrusts,M4)=0,\"\",\"Y\")","v":""},null,null,"2024-03-01"]
["Hagbourne CofE Primary School",null,"Pri","4-11","08104201",3249,null,null,"2024-04-01",{"$f":"IF(AND(I5>=39326,I5<=39691),\"2007/08\",IF(AND(I5>=39692,I5<=40056),\"2008/09\",IF(AND(I5>=40057,I5<=40421),\"2009/10\",IF(AND(I5>=40422,I5<=40786),\"2010/11\",IF(AND(I5>=40787,I5<=41152),\"2011/12\",IF(AND(I5>=41153,I5<=41517),\"2012/13\",IF(AND(I5>=41518,I5<=41882),\"2013/14\",IF(AND(I5>=41883,I5<=42247),\"2014/15\",IF(AND(I5>=42248,I5<=42613),\"2015/16\",IF(AND(I5>=42614,I5<=42978),\"2016/17\",IF(AND(I5>=42979,I5<=43343),\"2017/18\",IF(AND(I5>=43344,I5<=43708),\"2018/19\"\"date out of scope - rewrite formula\"))))))))))))","v":false},"Voluntary Converter","MAT","Ridgeway Education Trust",{"$f":"IF(COUNTIF(SponsorTrusts,M5)=0,\"\",\"Y\")","v":"Y"},null,null,"2024-03-01"]
["Glory Farm Primary School",null,"Pri","3-11","09053713",2211,null,"Bernwode Schools Trust (09053713)","2014-07-01",{"$f":"IF(AND(I6>=39326,I6<=39691),\"2007/08\",IF(AND(I6>=39692,I6<=40056),\"2008/09\",IF(AND(I6>=40057,I6<=40421),\"2009/10\",IF(AND(I6>=40422,I6<=40786),\"2010/11\",IF(AND(I6>=40787,I6<=41152),\"2011/12\",IF(AND(I6>=41153,I6<=41517),\"2012/13\",IF(AND(I6>=41518,I6<=41882),\"2013/14\",IF(AND(I6>=41883,I6<=42247),\"2014/15\",IF(AND(I6>=42248,I6<=42613),\"2015/16\",IF(AND(I6>=42614,I6<=42978),\"2016/17\",IF(AND(I6>=42979,I6<=43343),\"2017/18\",IF(AND(I6>=43344,I6<=43708),\"2018/19\"\"date out of scope - rewrite formula\"))))))))))))","v":"2013/14"},"Voluntary Converter","MAT","Acer Trust",{"$f":"IF(COUNTIF(SponsorTrusts,M6)=0,\"\",\"Y\")","v":""},{"$f":"IF(COUNTIF(ApprSchSonsors,A6)=0,\"\",\"Y\")","v":""},"Merged with Acer Trust 1/1/24. Previously Bicester Learning Academy- Changed name to Bernwode Schools Trust  1/12/2019","2024-02-01"]
["The Cooper School",null,"Sec","11-18","09053713",4032,null,"Bernwode Schools Trust (09053713)","2014-07-01","2013/14","Voluntary Converter","MAT","Acer Trust","",{"$f":"IF(COUNTIF(ApprSchSonsors,A7)=0,\"\",\"Y\")","v":""},"Merged with Acer Trust 1/1/24. Previously Bicester Learning Academy- Changed name to Bernwode Schools Trust  1/12/2019","2024-02-01"]
["Cropredy CofE Primary",null,"Pri","4-11","07939655",2042,3000,null,"2023-12-01",false,"Sponsored Academy brokered by DfE","MAT","Eynsham Partnership Academy","",null,null,"2023-12-01"]
["Fritwell CE Primary",null,"Pri","4-11","07939655",3065,null,null,"2023-11-01",false,"Voluntary Converter","MAT","Eynsham Partnership Academy","",null,null,"2023-11-01"]
["All Saints CofE (Aided) Primary",null,"Pri","3-11","08104201",3859,null,null,"2023-11-01",false,"Voluntary Converter","MAT","Ridgeway Education Trust","Y",null,null,"2023-11-01"]
["Long Wittenham CofE Primary",null,"Pri","4-11","08104201",3233,null,null,"2023-11-01",false,"Sponsored Academy brokered by DfE","MAT","Ridgeway Education Trust","Y",null,null,"2023-11-01"]
["Wootton-by-Woodstock CE (Aided) Primary",null,"Pri X","4-11","08143249",3657,null,"Oxford Diocesan Schools Trust","2018-10-01","2018/19","Voluntary Converter","MAT",null,"",null,"The School has closed following consultation on 31st August 2023","2023-09-01"]
["Ashbury with Compton Beauchamp CE (VA) Primary",null,"Pri","4-11","07977368",3851,null,null,"2023-02-01",{"$f":"IF(AND(I13>=39326,I13<=39691),\"2007/08\",IF(AND(I13>=39692,I13<=40056),\"2008/09\",IF(AND(I13>=40057,I13<=40421),\"2009/10\",IF(AND(I13>=40422,I13<=40786),\"2010/11\",IF(AND(I13>=40787,I13<=41152),\"2011/12\",IF(AND(I13>=41153,I13<=41517),\"2012/13\",IF(AND(I13>=41518,I13<=41882),\"2013/14\",IF(AND(I13>=41883,I13<=42247),\"2014/15\",IF(AND(I13>=42248,I13<=42613),\"2015/16\",IF(AND(I13>=42614,I13<=42978),\"2016/17\",IF(AND(I13>=42979,I13<=43343),\"2017/18\",IF(AND(I13>=43344,I13<=43708),\"2018/19\"\"date out of scope - rewrite formula\"))))))))))))","v":false},"Voluntary Converter","MAT","Faringdon Learning Trust","",null,null,"2023-02-01"]
["Bishopswood School",null,"Spec","2-19","8340120",7008,7030,null,"2023-01-01",false,"Sponsored Academy brokered by DfE","MAT","The Propeller Academy Trust","",null,null,"2023-01-01"]
["St Laurence's CofE (A) Primary",null,"Pri","4-11","08143249",2039,3760,null,"2022-10-01",false,"Sponsored Academy brokered by DfE","MAT","Oxford Diocesan Schools Trust","",null,null,"2022-10-01"]
["Folly View Primary School","Faringdon Infant School","Pri","2-11","07977368",2561,null,null,"2012-04-01","2011/12","Voluntary Converter","MAT","Faringdon Learning Trust","",{"$f":"IF(COUNTIF(ApprSchSonsors,A16)=0,\"\",\"Y\")","v":""},"name change Sep2022(Previously Faringdon Infant School, moving to brand new building in Oct 22) ","2022-09-01"]
["The Elms Primary School","Faringdon Junior School","Pri","3-11","07977368",2562,null,null,"2012-04-01","2011/12","Voluntary Converter","MAT","Faringdon Learning Trust","","","name change Sep2022 (previously Faringdon Junior School)","2022-09-01"]
["Bayards Hill Primary School",null,"Pri","3-11","8319810",2015,2521,"Cheney School Academy trust","2014-10-01","2014/15","Sponsored Academy brokered by DfE","MAT","River Learning Trust","","","Previously part of Community Schools Alliance Trust (CSAT) which was Rebrokered to RLT 1st Feb 2022","2022-02-01"]
["Cheney Community College",null,"Sec","11-18","8319810",4120,null,"Cheney School Academy trust","2013-01-01","2012/13","Voluntary Converter","MAT","River Learning Trust","","","Previously part of Community Schools Alliance Trust (CSAT) which was rebrokered to RLT on 1st Feb 22","2022-02-01"]
["The Bicester School","Bicester Community College","Sec","11-18","0807909",4011,4030,null,"2015-08-01","2014/15","Sponsored Academy brokered by DfE","MAT","Activate Learning Education Trust","","","Merged with Bicester Technology Studio Feb 2021","2021-05-01"]
["Our Lady of Lourdes RC Primary, Witney",null,"Pri","4-11","09113542",3822,null,"Dominic Barberi MAC 8453966","2013-04-01","2012/13","Voluntary Converter","MAC","The Pope Francis MAC","","","Transferred to Pope Francis MAC on 1st Jan 2021","2021-01-01"]
["Our Lady's RC Primary School, Cowley",null,"Pri","4-11","09113542",3836,null,"Dominic Barberi MAC 8453966","2013-04-01","2012/13","Voluntary Converter","MAC","The Pope Francis MAC","","","transferred to Pope Francis MAC on 1st Jan 2021","2021-01-01"]
["St John Fisher RC Primary School, Littlemore",null,"Pri","3-11","09113542",3839,null,"Dominic Barberi MAC 8453966","2013-04-01","2012/13","Voluntary Converter","MAC","The Pope Francis MAC","","","transferred to Pope Francis MAC on 1st Jan 2021","2021-01-01"]
["St Joseph's RC Primary School, Thame",null,"Pri","4-11","09113542",3826,null,"Dominic Barberi MAC 8453966","2013-04-01","2012/13","Voluntary Converter","MAC","The Pope Francis MAC","","","transferred to Pope Francis MAC on 1st Jan 2021","2021-01-01"]
["St Thomas More Catholic Primary School",null,"Pri","3-11","09113542",3823,null,"Dominic Barberi MAC 8453966","2013-04-01","2012/13","Voluntary Converter","MAC","The Pope Francis MAC","","","transferred to Pope Francis MAC on 1st Jan 2021","2021-01-01"]
["St Gregory The Great","St Gregory the Great Catholic School","Sec","11-18","09113542",4014,4145,"Dominic Barberi MAC 8453966","2013-04-01","2012/13","Voluntary Converter","MAC","The Pope Francis MAC","","","All through school de-amalgamated Nov 20.  Secondary School transferred to Pope Francis MAC and St Frideswide CE Primary School was created as part of ODST - see new schools tab for further information","2021-01-01"]
["Gosford Hill School",null,"Sec","11-18","07966500",4060,null,"Gosford Hill School 08237106","2012-11-01","2012/13","Voluntary Converter","Single converter","River Learning Trust","","","Previously Gosford Hill School Single Academy Trust","2020-12-01"]
["Mabel Prichard School",null,"Spec","2-19","8334718",7020,null,null,"2020-11-01",false,"Voluntary Converter","MAT","The Gallery Trust","",null,null,"2020-11-01"]
["Buckland C of E Primary School",null,"Pri","3-11","07977368",3222,null,null,"2013-11-01","2013/14","Voluntary Converter","MAT","Faringdon Learning Trust","",{"$f":"IF(COUNTIF(ApprSchSonsors,A29)=0,\"\",\"Y\")","v":""},"name change Sep2020 (previously Faringdon Academy of Schools FAoS)","2020-11-01"]
["John Blandy VC Primary School",null,"Pri","4-11","07977368",3230,null,null,"2013-11-01","2013/14","Voluntary Converter","MAT","Faringdon Learning Trust","","","name change Sep2020 (previously Faringdon Academy of Schools FAoS)","2020-11-01"]
["Longcot & Fernham C of E Primary School",null,"Pri","4-11","07977368",3232,null,null,"2013-11-01","2013/14","Voluntary Converter","MAT","Faringdon Learning Trust","","","name change Sep2020 (previously Faringdon Academy of Schools FAoS)","2020-11-01"]
["Shrivenham C of E Primary School",null,"Pri","4-11","07977368",3239,null,null,"2013-11-01","2013/14","Voluntary Converter","MAT","Faringdon Learning Trust","","","name change Sep2020 (previously Faringdon Academy of Schools FAoS)","2020-11-01"]
["Watchfield Primary School",null,"Pri","3-11","07977368",2572,null,null,"2013-11-01","2013/14","Voluntary Converter","MAT","Faringdon Learning Trust","","","name change Sep2020 (previously Faringdon Academy of Schools FAoS)","2020-11-01"]
["Faringdon Community College",null,"Sec","11-18","07977368",4141,null,null,"2012-04-01","2011/12","Voluntary Converter","MAT","Faringdon Learning Trust","","","name change Sep2020 (previously Faringdon Academy of Schools FAoS)","2020-11-01"]
["The Oxford Academy",null,"Sec","11-18","07966500",4019,6906,"The Oxford Academy Trust 06621108","2008-09-01","2008/09","Sponsored Academy brokered by DfE","MAT","River Learning Trust","","","Previously SAT - rebrokered to RLT 1st November 2020","2020-11-01"]
["St John's Catholic Primary",null,"Pri","4-11","09113542",2035,3350,null,"2020-09-01",false,"Sponsored Academy brokered by DfE","MAC","The Pope Francis MAC","",null,null,"2020-09-01"]
["Springfield School",null,"Spec","2-19","8334718",7012,null,null,"2020-07-01",false,"Voluntary Converter","MAT","The Gallery Trust","",null,null,"2020-07-01"]
["St Joseph's RC Primary School, Carterton",null,"Pri","3-11","09113542",3556,null,"Dominic Barberi MAC (8453966)","2013-04-01","2012/13","Voluntary Converter","MAC","The Pope Francis MAC",{"$f":"IF(COUNTIF(SponsorTrusts,M38)=0,\"\",\"Y\")","v":""},{"$f":"IF(COUNTIF(ApprSchSonsors,A38)=0,\"\",\"Y\")","v":""},"Previously Dominic Barberi MAC rebrokered 1st April 2020","2020-04-01"]
["Botley School",null,"Pri","3-11","09591931",2032,2569,null,"2020-03-01","2019/20","Sponsored Academy brokered by DfE","MAT","Acer Trust","",null,null,"2020-03-01"]
["Finmere CE School",null,"Pri","4-11","9696059",3090,null,null,"2020-03-01","2019/20","Voluntary Converter","MAT","The Warriner Multi Academy Trust","Y",null,null,"2020-03-01"]
["Northern House Special School",null,"Spec","2-19","8334718",5950,7016,"Northern House School Academy Trust (8140768)","2012-09-01",{"$f":"IF(AND(I41>=39326,I41<=39691),\"2007/08\",IF(AND(I41>=39692,I41<=40056),\"2008/09\",IF(AND(I41>=40057,I41<=40421),\"2009/10\",IF(AND(I41>=40422,I41<=40786),\"2010/11\",IF(AND(I41>=40787,I41<=41152),\"2011/12\",IF(AND(I41>=41153,I41<=41517),\"2012/13\",IF(AND(I41>=41518,I41<=41882),\"2013/14\",IF(AND(I41>=41883,I41<=42247),\"2014/15\",IF(AND(I41>=42248,I41<=42613),\"2015/16\",IF(AND(I41>=42614,I41<=42978),\"2016/17\",IF(AND(I41>=42979,I41<=43343),\"2017/18\",IF(AND(I41>=43344,I41<=43708),\"2018/19\"\"date out of scope - rewrite formula\"))))))))))))","v":"2012/13"},"Voluntary Converter","MAT","The Gallery Trust","",{"$f":"IF(COUNTIF(ApprSchSonsors,A41)=0,\"\",\"Y\")","v":""},"Previously Northern House School Academy Trust.  Rebrokered to The Gallery Trust 1st Feb 2020.","2020-03-01"]
["Christopher Rawlins CE VA School",null,"Pri","3-11","08143249",3453,null,null,"2020-02-01","2019/20","Voluntary Converter","MAT","Oxford Diocesan Schools Trust","",null,null,"2020-02-01"]
["Orion Academy","Northfield School","Spec","2-19","8334718",7004,7031,null,"2020-02-01","2019/20","Sponsored Academy brokered by DfE","MAT","The Gallery Trust","",null,"Name changed to Orion Academy at conversion","2020-02-01"]
["Meadowbrook College (PRU)",null,"Spec","2-19","09334026",1106,null,null,"2015-02-01",{"$f":"IF(AND(I44>=39326,I44<=39691),\"2007/08\",IF(AND(I44>=39692,I44<=40056),\"2008/09\",IF(AND(I44>=40057,I44<=40421),\"2009/10\",IF(AND(I44>=40422,I44<=40786),\"2010/11\",IF(AND(I44>=40787,I44<=41152),\"2011/12\",IF(AND(I44>=41153,I44<=41517),\"2012/13\",IF(AND(I44>=41518,I44<=41882),\"2013/14\",IF(AND(I44>=41883,I44<=42247),\"2014/15\",IF(AND(I44>=42248,I44<=42613),\"2015/16\",IF(AND(I44>=42614,I44<=42978),\"2016/17\",IF(AND(I44>=42979,I44<=43343),\"2017/18\",IF(AND(I44>=43344,I44<=43708),\"2018/19\"\"date out of scope - rewrite formula\"))))))))))))","v":"2014/15"},"Voluntary Converter","MAT","Radcliffe Academy Trust","",{"$f":"IF(COUNTIF(ApprSchSonsors,A44)=0,\"\",\"Y\")","v":""},"Rebrokering to Community Schools Alliance Trust - date TBC","2020-02-01"]
["Blewbury Endowed CE Primary",null,"Pri","4-11","08143249",2031,3248,null,"2019-12-01","2019/20","Sponsored Academy brokered by DfE","MAT","Oxford Diocesan Schools Trust","",null,null,"2019-12-01"]
["Charlbury Primary School",null,"Pri","4-11","07966500",2030,2100,null,"2019-12-01","2019/20","Sponsored Academy brokered by DfE","MAT","River Learning Trust","",null,null,"2019-12-01"]
["Benson CofE School",null,"Pri","3-11","08143249",3181,null,null,"2019-10-01","2019/20","Voluntary Converter","MAT","Oxford Diocesan Schools Trust",""]
["Watlington Primary School",null,"Pri","3-11","09591931",2459,null,null,"2019-08-01","2018/19","Voluntary Converter","MAT","Acer Trust",""]
["Bardwell School",null,"Spec","11-19","8334718",7029,null,null,"2019-06-01","2018/19","Voluntary Converter","MAT","The Gallery Trust",""]
["Sutton Courtenay CofE Primary",null,"Pri","3-11","08104201",3243,null,null,"2019-04-01","2018/19","Voluntary Converter","MAT","Ridgeway Education Trust","Y",null,"Previously Didcot Academy of Schools"]
["Beckley CofE Primary",null,"Pri","4-11","07966500",3256,null,null,"2019-04-01","2018/19","Voluntary Converter","MAT","River Learning Trust",""]
["Stadhampton Primary",null,"Pri","4-11","09591931",2455,null,null,"2019-02-01","2018/19","Voluntary Converter","MAT","Acer Trust",""]
["Hardwick CP School",null,"Pri","4-11","07551959",2060,null,null,"2019-02-01","2018/19","Voluntary Converter","MAT","GLF Schools",""]
["Larkrise Primary School",null,"Pri","3-11","07966500",2027,2543,null,"2019-02-01","2018/19","Sponsored Academy brokered by DfE","MAT","River Learning Trust",""]
["Fitzharrys School",null,"Sec","11-18","07931886",4127,null,null,"2018-11-01","2018/19","Voluntary Converter","MAT","Abingdon Learning Trust (ALT)",""]
["Middle Barton Primary",null,"Pri","4-11","07966500",2151,null,null,"2018-09-01","2018/19","Voluntary Converter","MAT","River Learning Trust",""]
["Rose Hill Primary",null,"Pri","3-11","07966500",2023,2531,null,"2018-09-01","2018/19","Sponsored Academy brokered by DfE","MAT","River Learning Trust",""]
["Sandhills Primary",null,"Pri","3-11","07966500",2022,2401,null,"2018-09-01","2018/19","Sponsored Academy brokered by DfE","MAT","River Learning Trust",""]
["Maiden Erlegh Chiltern Edge ","Chiltern Edge Community School","Sec","11-16","07548754",4013,4092,null,"2018-08-01",{"$f":"IF(AND(I59>=39326,I59<=39691),\"2007/08\",IF(AND(I59>=39692,I59<=40056),\"2008/09\",IF(AND(I59>=40057,I59<=40421),\"2009/10\",IF(AND(I59>=40422,I59<=40786),\"2010/11\",IF(AND(I59>=40787,I59<=41152),\"2011/12\",IF(AND(I59>=41153,I59<=41517),\"2012/13\",IF(AND(I59>=41518,I59<=41882),\"2013/14\",IF(AND(I59>=41883,I59<=42247),\"2014/15\",IF(AND(I59>=42248,I59<=42613),\"2015/16\",IF(AND(I59>=42614,I59<=42978),\"2016/17\",IF(AND(I59>=42979,I59<=43343),\"2017/18\",IF(AND(I59>=43344,I59<=43708),\"2018/19\"\"date out of scope - rewrite formula\"))))))))))))","v":"2017/18"},"Sponsored Academy brokered by DfE","MAT","Maiden Erlegh Trust",""]
["Fir Tree Jun School",null,"Jun","7-11","08143249",2578,null,null,"2018-04-01","2017/18","Voluntary Converter","MAT","Oxford Diocesan Schools Trust",""]
["St Nicholas' CE Inf School & Foundation Stage unit (Wallingford)",null,"Inf","3-6","08143249",3244,null,null,"2018-04-01","2017/18","Voluntary Converter","MAT","Oxford Diocesan Schools Trust",""]
["Madley Brook Community Primary",null,"Pri","3-11","07966500",2002,null,null,"2018-04-01","2017/18","Voluntary Converter","MAT","River Learning Trust",""]
["Witney Community Primary",null,"Pri","4-11","07966500",2302,null,null,"2018-04-01","2017/18","Voluntary Converter","MAT","River Learning Trust",""]
["Northbourne CofE Primary",null,"Pri","3-11","08143249",3852,null,null,"2018-01-01","2017/18","Voluntary Converter","MAT","Oxford Diocesan Schools Trust",""]
["St Mary's CE (VC) Primary (Banbury)",null,"Pri","3-11","08143249",3022,null,null,"2017-11-01","2017/18","Voluntary Converter","MAT","Oxford Diocesan Schools Trust",""]
["North Hinksey CofE Primary",null,"Pri","3-11","08143249",3237,null,null,"2017-10-01","2017/18","Voluntary Converter","MAT","Oxford Diocesan Schools Trust",""]
["Hill View Primary",null,"Pri","3-11","04439859",2056,null,null,"2017-10-01","2017/18","Voluntary Converter","MAT","United Learning Trust (ULT)",""]
["Brightwell-Cum-Sotwell CofE (C) School",null,"Pri","3-11","07727786 ",3221,null,null,"2017-09-01","2017/18","Voluntary Converter","MAT","The Merchant Taylors Oxfordshire Academy Trust Ltd",""]
["Kidmore End CE (Aided) Primary",null,"Pri","3-11","08143249",3807,null,null,"2017-08-01","2016/17","Voluntary Converter","MAT","Oxford Diocesan Schools Trust",""]
["Thameside Primary",null,"Pri","3-11","07674473",2598,null,null,"2017-08-01","2016/17","Voluntary Converter","MAT","Vale Academy Trust",{"$f":"IF(COUNTIF(SponsorTrusts,M70)=0,\"\",\"Y\")","v":""}]
["Deddington CofE Primary",null,"Pri","4-11","08143249",3452,null,null,"2017-07-01","2016/17","Voluntary Converter","MAT","Oxford Diocesan Schools Trust",""]
["Dr Radcliffe's CofE School",null,"Pri","4-11","08143249",3828,null,null,"2017-06-01","2016/17","Voluntary Converter","MAT","Oxford Diocesan Schools Trust",""]
["South Moreton School",null,"Pri","4-11","08143249",2566,null,null,"2017-06-01","2016/17","Voluntary Converter","MAT","Oxford Diocesan Schools Trust",""]
["Bishop Loveday CofE Primary",null,"Pri","4-11","9696059",3351,null,null,"2017-06-01","2016/17","Voluntary Converter","MAT","The Warriner Multi Academy Trust","Y"]
["Garsington CE Primary",null,"Pri","3-11","07966500",3167,null,null,"2017-05-01","2016/17","Voluntary Converter","MAT","River Learning Trust",""]
["Horspath CofE Primary",null,"Pri","4-11","07966500",3161,null,null,"2017-05-01","2016/17","Voluntary Converter","MAT","River Learning Trust",""]
["West Kidlington Primary",null,"Pri","3-11","08075785",2021,2110,null,"2017-05-01","2016/17","Sponsored Academy brokered by DfE","MAT","The White Horse Federation",""]
["Wroxton CE Primary School",null,"Pri","3-11","08143249",3004,null,null,"2017-04-01","2016/17","Voluntary Converter","MAT","Oxford Diocesan Schools Trust",""]
["Edith Moorhouse Primary",null,"Pri","4-11","07966500",2255,null,null,"2017-04-01","2016/17","Voluntary Converter","MAT","River Learning Trust",""]
["Chalgrove Community Primary",null,"Pri","3-11","09591931",2452,null,null,"2017-03-01","2016/17","Voluntary Converter","MAT","Acer Trust",""]
["Icknield Community College",null,"Sec","11-16","09591931",4082,null,null,"2017-02-01","2016/17","Voluntary Converter","MAT","Acer Trust",""]
["Wood Green School",null,"Sec","11-18","09591931",4052,null,null,"2017-02-01","2016/17","Voluntary Converter","MAT","Acer Trust",""]
["Leafield CofE Controlled Primary",null,"Pri","4-11","08143249",3124,null,null,"2017-02-01","2016/17","Voluntary Converter","MAT","Oxford Diocesan Schools Trust",""]
["New Marston Primary",null,"Pri","4-11","07966500",2020,2529,null,"2017-02-01","2016/17","Sponsored Academy brokered by DfE","MAT","River Learning Trust",""]
["Dr South's CE VA Primary",null,"Pri","3-11","08143249",3655,null,null,"2017-01-01","2016/17","Voluntary Converter","MAT","Oxford Diocesan Schools Trust",""]
["Tackley CofE Primary",null,"Pri","4-11","08143249",3144,null,null,"2017-01-01","2016/17","Voluntary Converter","MAT","Oxford Diocesan Schools Trust",""]
["Larkmead School",null,"Sec","11-18","07674473",4125,null,null,"2017-01-01","2016/17","Voluntary Converter","MAT","Vale Academy Trust",""]
["Southwold Primary School",null,"Pri","3-11","08075785",2607,null,null,"2016-04-01","2015/16","Voluntary converter","MAT","The White Horse Federation",""]
["Brize Norton Primary School",null,"Pri","4-11",{"$f":"LEFT(RIGHT(INDEX(CompanyNames_Numbers,MATCH(Converted[[#This Row],[Trust / sponsor details]]&\"*\",CompanyNames_Numbers,0)),9),8)","v":"08143249"},2250,null,null,"2016-03-01","2015/16","Voluntary Converter","MAT","Oxford Diocesan Schools Trust","",{"$f":"IF(COUNTIF(ApprSchSonsors,A89)=0,\"\",\"Y\")","v":""}]
["St James, East Hanney",null,"Pri","4-11","07674473",3225,null,null,"2016-03-01","2015/16","Voluntary Converter","MAT","Vale Academy Trust","",""]
["William Morris Primary School",null,"Pri","3-11","07551959",2019,2059,null,"2016-02-01",{"$f":"IF(AND(I91>=39326,I91<=39691),\"2007/08\",IF(AND(I91>=39692,I91<=40056),\"2008/09\",IF(AND(I91>=40057,I91<=40421),\"2009/10\",IF(AND(I91>=40422,I91<=40786),\"2010/11\",IF(AND(I91>=40787,I91<=41152),\"2011/12\",IF(AND(I91>=41153,I91<=41517),\"2012/13\",IF(AND(I91>=41518,I91<=41882),\"2013/14\",IF(AND(I91>=41883,I91<=42247),\"2014/15\",IF(AND(I91>=42248,I91<=42613),\"2015/16\",IF(AND(I91>=42614,I91<=42978),\"2016/17\",IF(AND(I91>=42979,I91<=43343),\"2017/18\",IF(AND(I91>=43344,I91<=43708),\"2018/19\"\"date out of scope - rewrite formula\"))))))))))))","v":"2015/16"},"Sponsored Academy brokered by DfE","MAT","GLF Schools","",""]
["St Mary's Infants, Witney",null,"Inf","4-11","08143249",3207,null,null,"2015-12-01","2015/16","Voluntary Converter","MAT","Oxford Diocesan Schools Trust","",""]
["Tower Hill Primary",null,"Pri","3-11","07966500",2303,null,null,"2015-11-01","2015/16","Voluntary Converter","MAT","River Learning Trust","",""]
["Wolvercote Primary",null,"Pri","3-11","07966500",2534,null,null,"2015-11-01","2015/16","Voluntary Converter","MAT","River Learning Trust","",""]
["Burford Primary School",null,"Pri","3-11","08143249",2251,null,null,"2015-10-01","2015/16","Voluntary Converter","MAT","Oxford Diocesan Schools Trust","",""]
["The Batt CE Primary School",null,"Pri","4-11","08143249",3605,null,null,"2015-10-01","2015/16","Voluntary Converter","MAT","Oxford Diocesan Schools Trust","",""]
["Finstock Church of England Primary School",null,"Pri","3-11","8060721",3040,null,null,"2015-10-01","2015/16","Voluntary Converter","MAT","The Mill Academy","Y",""]
["Queen Emma’s Primary School","Queen's Dyke","Pri","4-11","8060721",2304,null,null,"2015-10-01","2015/16","Voluntary Converter","MAT","The Mill Academy","Y",""]
["Matthew Arnold School",null,"Sec","11-18","09591931",4128,null,"West Oxford Schools Trust","2015-08-01","2014/15","Voluntary Converter","MAT","Acer Trust","",""]
["Bishop Carpenter CofE (VA)        ",null,"Pri","4-11","9696059",3302,null,null,"2015-08-01","2014/15","Voluntary Converter","MAT","The Warriner Multi Academy Trust","Y",""]
["Hornton Primary School",null,"Pri","2-11","9696059",2001,null,null,"2015-08-01","2014/15","Voluntary Converter","MAT","The Warriner Multi Academy Trust","Y",""]
["Sibford Gower Endowed Primary School",null,"Pri","4-11","9696059",3005,null,null,"2015-08-01","2014/15","Voluntary Converter","MAT","The Warriner Multi Academy Trust",{"$f":"IF(COUNTIF(SponsorTrusts,M102)=0,\"\",\"Y\")","v":"Y"},""]
["The Warriner School",null,"Sec","11-18","9696059",4007,null,null,"2015-08-01","2014/15","Voluntary Converter","MAT","The Warriner Multi Academy Trust","Y",""]
["Bampton CE Primary School",null,"Pri","2-11","08143249",3131,null,null,"2015-07-01","2014/15","Voluntary Converter","MAT","Oxford Diocesan Schools Trust","",""]
["North Leigh CE Primary",null,"Pri","4-11","08143249",3128,null,null,"2015-07-01","2014/15","Voluntary Converter","MAT","Oxford Diocesan Schools Trust","",""]
["St Christopher’s CofE Primary School, Langford",null,"Pri","4-11","08143249",3555,null,null,"2015-03-01","2014/15","Voluntary Converter","MAT","Oxford Diocesan Schools Trust","",""]
["St Peter’s CE School, Alvescot",null,"Pri","4-6","08143249",3550,null,null,"2015-03-01","2014/15","Voluntary Converter","MAT","Oxford Diocesan Schools Trust","",""]
["The Blake CE Primary School",null,"Pri","4-11","08143249",3600,null,null,"2015-03-01","2014/15","Voluntary Converter","MAT","Oxford Diocesan Schools Trust","",""]
["Millbrook Primary School",null,"Pri","3-11","07674473",2016,2603,null,"2014-12-01","2014/15","Sponsored Academy brokered by DfE","MAT","Vale Academy Trust","",""]
["St Nicholas CE Primary School, East Challow",null,"Pri","4-11","07674473",3224,null,null,"2014-10-01","2014/15","Voluntary Converter","MAT","Vale Academy Trust","",""]
["Blessed George Napier Catholic Secondary School",null,"Sec","11-18","09113542",4600,null,null,"2014-08-01","2013/14","Voluntary Converter","MAC","The Pope Francis MAC","",""]
["Holy Trinity Catholic Primary School",null,"Pri","4-11","09113542",3420,null,null,"2014-08-01","2013/14","Voluntary Converter","MAC","The Pope Francis MAC","",""]
["St Joseph's Catholic Primary School, Banbury",null,"Pri","3-11","09113542",3825,null,null,"2014-08-01","2013/14","Voluntary Converter","MAC","The Pope Francis MAC","",""]
["Hanborough Manor C of E Primary School",null,"Pri","4-11","07939655",3147,null,null,"2014-07-01","2013/14","Voluntary Converter","MAT","Eynsham Partnership Academy","",""]
["Freeland C of E Primary School",null,"Pri","4-11","07939655",3208,null,null,"2014-06-01","2013/14","Voluntary Converter","MAT","Eynsham Partnership Academy","",""]
["St Peter's C of E Primary School, Cassington",null,"Pri","3-11","07939655",3651,null,null,"2014-06-01","2013/14","Voluntary Converter","MAT","Eynsham Partnership Academy","",""]
["Standlake C of E Primary School",null,"Pri","3-11","07939655",3127,null,null,"2014-06-01","2013/14","Voluntary Converter","MAT","Eynsham Partnership Academy","",""]
["Eynsham Primary School",null,"Pri","3-11","07939655",2013,2209,null,"2014-05-01","2013/14","Sponsored Academy brokered by DfE","MAT","Eynsham Partnership Academy","",""]
["Stanton Harcourt C of E Primary School",null,"Pri","3-11","07939655",3130,null,null,"2014-05-01","2013/14","Voluntary Converter","MAT","Eynsham Partnership Academy","",""]
["Wheatley Park School",null,"Sec","11-18","07966500",4077,null,"Wheatley Area Learning Trust 08979902","2014-05-01","2013/14","Voluntary Converter","MAT","River Learning Trust",{"$f":"IF(COUNTIF(SponsorTrusts,P120)=0,\"\",\"Y\")","v":""},"","Formally Wheatley Area Learning Trust Rebrokered July 2016"]
["Wheatley CE Primary School",null,"Pri","4-11","08143249",2009,3165,null,"2014-03-01","2013/14","Sponsored Academy brokered by DfE","MAT","Oxford Diocesan Schools Trust",{"$f":"IF(COUNTIF(SponsorTrusts,M121)=0,\"\",\"Y\")","v":""},{"$f":"IF(COUNTIF(ApprSchSonsors,A121)=0,\"\",\"Y\")","v":""}]
["John Mason Secondary School",null,"Sec","11-18","07937886",4126,null,"John Mason Academy Trust","2014-02-01","2013/14","Voluntary Converter","MAT","Abingdon Learning Trust (ALT)","","","Formally John Mason Academy Trust"]
["St Christopher's CE Primary School, Cowley",null,"Pri","3-11","08143249",2010,3252,null,"2014-02-01",{"$f":"IF(AND(I123>=39326,I123<=39691),\"2007/08\",IF(AND(I123>=39692,I123<=40056),\"2008/09\",IF(AND(I123>=40057,I123<=40421),\"2009/10\",IF(AND(I123>=40422,I123<=40786),\"2010/11\",IF(AND(I123>=40787,I123<=41152),\"2011/12\",IF(AND(I123>=41153,I123<=41517),\"2012/13\",IF(AND(I123>=41518,I123<=41882),\"2013/14\",IF(AND(I123>=41883,I123<=42247),\"2014/15\",IF(AND(I123>=42248,I123<=42613),\"2015/16\",IF(AND(I123>=42614,I123<=42978),\"2016/17\",IF(AND(I123>=42979,I123<=43343),\"2017/18\",IF(AND(I123>=43344,I123<=43708),\"2018/19\"\"date out of scope - rewrite formula\"))))))))))))","v":"2013/14"},"Voluntary Converter","MAT","Oxford Diocesan Schools Trust","",""]
["Grove CE Primary School",null,"Pri","4-11","08143249",3228,null,null,"2013-12-01","2013/14","Voluntary Converter","MAT","Oxford Diocesan Schools Trust","",""]
["The Hendreds CE Primary School, Wantage",null,"Pri","4-11","08143249",3250,null,null,"2013-12-01","2013/14","Voluntary Converter","MAT","Oxford Diocesan Schools Trust","",""]
["Cholsey Primary School",null,"Pri","4-11","08722647",2596,null,null,"2013-11-01","2013/14","Voluntary Converter","Umbrella Trust","Oxfordshire Primary Education Network (OPEN)","",""]
["Charlton Primary School",null,"Pri","4-11","07674473",2573,null,null,"2013-10-01","2013/14","Voluntary Converter","MAT","Vale Academy Trust","",""]
["Wantage C of E Primary School",null,"Pri","3-11","07674473",3246,null,null,"2013-10-01","2013/14","Voluntary Converter","MAT","Vale Academy Trust","",""]
["Abbey Woods Academy","Berinsfield Community Primary School","Pri","3-11","07468210",2007,2461,null,"2013-09-01","2013/14","Sponsored Academy brokered by DfE","MAT","Anthem Schools Trust","","","Previously CfBT Schools Trust"]
["Orchard Meadow Primary School",null,"Pri","3-11","04439859",2024,"2006 2539","Blackbird Academy Trust - 08544741","2013-08-01","2012/13","Sponsored Academy brokered by DfE","MAT","United Learning Trust (ULT)","","","Sponsored by the Dragon School.  Blackbird Academy Trust joined United Learning 1/9/18 (DFE No. changed)"]
["Pegasus Primary School",null,"Pri","3-11","04439859",2593,null,"Blackbird Academy Trust - 08544741","2013-08-01","2012/13","Voluntary Converter","MAT","United Learning Trust (ULT)","","","Blackbird Academy Trust joined United Learning 1/9/18"]
["Windale Community Primary School ",null,"Pri","3-11","04439859",2025,"2005 2606","Blackbird Academy Trust - 08544741","2013-08-01","2012/13","Sponsored Academy brokered by DfE","MAT","United Learning Trust (ULT)","","","Sponsored by the Dragon School.  Blackbird Academy Trust joined United Learning 1/9/18 (DFE No. changed)"]
["Manor School, Didcot",null,"Pri","4-11","07551959",2028,2597,"O.P.E.N.  08516551","2013-06-01","2012/13","Voluntary Converter","MAT","GLF Schools","","","Transferred from O.P.E.N. to GLF Schools 1st May 2019.  (DfE No. Changed)"]
["Ladygrove Park Primary School",null,"Pri","3-11","08517429",2609,null,null,"2013-06-01","2012/13","Voluntary Converter","Umbrella Trust","Oxfordshire Primary Education Network (OPEN)","",""]
["St Johns Primary School, Wallingford",null,"Pri","4-11","008517255",2567,null,null,"2013-06-01","2012/13","Voluntary Converter","Umbrella Trust","Oxfordshire Primary Education Network (OPEN)","",""]
["Willowcroft Community Primary School",null,"Pri","3-11","08516562",3912,null,null,"2013-06-01","2012/13","Voluntary Converter","Umbrella Trust","Oxfordshire Primary Education Network (OPEN)","",""]
["Cutteslowe Primary School",null,"Pri","3-11","07966500",2004,2522,"The Cherwell School Academy Trust (7966500)","2013-04-01","2012/13","Sponsored Academy brokered by DfE","MAT","River Learning Trust","",""]
["Harriers Banbury Academy","Harriers Ground Community Primary Sch","Pri","3-11","7867577",2053,null,null,"2013-02-01","2012/13","Voluntary Converter","MAT","Aspirations Academy Trust (AAT)","",""]
["Iffley Academy","Iffley Mead Special School, Isis Academy","Spec","2-19","8334718",7018,null,null,"2013-02-01","2012/13","Voluntary Converter","MAT","The Gallery Trust","","","Previously The Iffley Academy Trust"]
["Fitzwaryn Special School",null,"Spec","2-19","8340120",7027,null,null,"2013-02-01","2012/13","Voluntary Converter","MAT","The Propeller Academy Trust","",""]
["Kingfisher Special School",null,"Spec","2-19","8340120",7000,7032,null,"2013-02-01","2012/13","Sponsored Academy brokered by DfE","MAT","The Propeller Academy Trust","","","Trust: Kingfisher and Fitzwaryn special schs with Abingdon and Witney College "]
["The Marlborough C of E School",null,"Sec","11-18","07966500",4560,null,"The Marlborough C of E School 8194349","2012-10-01","2012/13","Voluntary Converter","MAT","River Learning Trust","","","Previously the Marlborough Church of England School (Joined RLT April 2018)"]
["The John Henry Newman CE School",null,"Pri","3-11","08143249",2000,2612,null,"2012-09-01","2012/13","Sponsored Academy brokered by DfE","MAT","Oxford Diocesan Schools Trust","",""]
["St Birinus School, Didcot",null,"Sec","11-18","8104201",4129,null,null,"2012-09-01","2012/13","Voluntary Converter","MAT","Ridgeway Education Trust","Y","","Previously Didcot Academy of Schools"]
["Lord Williams's School",null,"Sec","11-18","8154932",4580,null,null,"2012-09-01","2012/13","Voluntary Converter","MAT","Thame Partnership Academy Trust","",""]
["Dashwood Banbury Academy","Dashwood Primary School","Pri","3-11","7867577",2003,2592,null,"2012-08-01","2011/12","Voluntary Converter","MAT","Aspirations Academy Trust (AAT)","",""]
["Wykham Park Academy","Banbury School then Banbury Academy","Sec","11-18","7867577",4000,4021,null,"2012-08-01","2011/12","Voluntary Converter","MAT","Aspirations Academy Trust (AAT)","",""]
["Didcot Girls' School",null,"Sec","11-18","8104201",4139,null,null,"2012-08-01","2011/12","Voluntary Converter","MAT","Ridgeway Education Trust","Y","","Previously Didcot Academy of Schools"]
["Burford Secondary School",null,"Sec","11-18","8082185",4040,null,null,"2012-07-01","2011/12","Voluntary Converter","Single converter","Burford School","",""]
["The Henry Box School",null,"Sec","11-18","8060721",4050,null,"The Henry Box School (8060721)","2012-06-01","2011/12","Voluntary Converter","MAT","The Mill Academy","Y",""]
["The Cherwell School",null,"Sec","11-18","07966500",4116,null,"The Cherwell School Academy Trust (7966500)","2012-04-01","2011/12","Voluntary Converter","MAT","River Learning Trust","",""]
["Langtree School",null,"Sec","11-16","07980335",4094,null,null,"2012-04-01","2011/12","Voluntary Converter","Single converter","The Langtree School Academy Trust","",""]
["Rush Common School",null,"Pri","4-11","07931886",2574,null,"Rush Common Academy Trust (07931886)","2012-03-01","2011/12","Voluntary Converter","MAT","Abingdon Learning Trust (ALT)","",{"$f":"IF(COUNTIF(ApprSchSonsors,A153)=0,\"\",\"Y\")","v":""},"Formally Rush Common Single Academy Trust"]
["Bartholomew School",null,"Sec","11-18","07939655",4054,null,null,"2012-03-01","2011/12","Voluntary Converter","MAT","Eynsham Partnership Academy","",""]
["Gillotts School",null,"Sec","11-16","07954417",4055,null,null,"2012-03-01",{"$f":"IF(AND(I155>=39326,I155<=39691),\"2007/08\",IF(AND(I155>=39692,I155<=40056),\"2008/09\",IF(AND(I155>=40057,I155<=40421),\"2009/10\",IF(AND(I155>=40422,I155<=40786),\"2010/11\",IF(AND(I155>=40787,I155<=41152),\"2011/12\",IF(AND(I155>=41153,I155<=41517),\"2012/13\",IF(AND(I155>=41518,I155<=41882),\"2013/14\",IF(AND(I155>=41883,I155<=42247),\"2014/15\",IF(AND(I155>=42248,I155<=42613),\"2015/16\",IF(AND(I155>=42614,I155<=42978),\"2016/17\",IF(AND(I155>=42979,I155<=43343),\"2017/18\",IF(AND(I155>=43344,I155<=43708),\"2018/19\"\"date out of scope - rewrite formula\"))))))))))))","v":"2011/12"},"Voluntary Converter","Single converter","Gillots School","",""]
["Chipping Norton School",null,"Sec","11-18","07966500",4010,null,"Chipping Norton School Academy Trust (07929429)","2012-03-01","2011/12","Voluntary Converter","MAT","River Learning Trust","","","Formally Chipping Norton School Academy Trust (Joined RLT March 2017)"]
["Hanwell Fields Community School",null,"Pri","3-11","04439859",3837,null,null,"2012-03-01","2011/12","Voluntary Converter","MAT","United Learning Trust (ULT)","",""]
["Wallingford School",null,"Sec","11-18","07727786 ",4140,null,"Wallingford Schools Academy Trust","2011-09-01","2011/12","Voluntary Converter","MAT","The Merchant Taylors Oxfordshire Academy Trust Ltd","","","Previously Wallingford Schools Academy Trust"]
["King Alfred's Academy","King Alfred's Community & Sports College","Sec","11-18","07674473",4142,null,null,"2011-08-01","2010/11","Voluntary Converter","MAT","Vale Academy Trust","",""]
["Oxford Spires Academy","Oxford School","Sec","11-18","07468210",6907,null,null,"2011-01-01","2010/11","Sponsored Academy brokered by DfE","MAT","Anthem Schools Trust","","","Previously CfBT Schools Trust"]
["North Oxfordshire Academy",null,"Sec","11-18","04439859",6905,null,null,"2007-09-01","2007/08","Sponsored Academy brokered by DfE","MAT","United Learning Trust (ULT)","",""]
[]
[null,null,{"$f":"SUBTOTAL(3,A2:A161)","v":160}]
["SHOWS CONVERTER SCHOOLS ONLY:"]
["Type of Trust","(All)",null,null,"SHOWS NEW SCHOOLS ONLY:"]
[null,null,null,null,"New School stats (NOT including schools that have converted to academy status)"]
["Row Labels","Count of Schools in Sponsor Trusts",null,null,"Trust / sponsor","No schs"]
["Abingdon Learning Trust (ALT)",3,null,null,"Activate Learning Education Trust",1]
["Acer Trust",9,null,null,"Aspirations Academy Trust (AAT)",1]
["Activate Learning Education Trust",1,null,null,"Europa School Trust",1]
["Anthem Schools Trust",2,null,null,"Eynsham Partnership Academy",1]
["Aspirations Academy Trust (AAT)",3,null,null,"GLF Schools",4]
["Burford School",1,null,null,"MacIntyre Academy Trust",1]
["Eynsham Partnership Academy",9,null,null,"Omnia Learning Trust",3]
["Faringdon Learning Trust",9,null,null,"Oxford Diocesan Schools Trust",2]
["Gillots School",1,null,null,"River Learning Trust",3]
["GLF Schools",3,null,null,"The Gallery Trust",1]
["Maiden Erlegh Trust",1,null,null,"The Warriner MAT",1]
["Oxford Diocesan Schools Trust",32,null,null,"The White Horse Federation",2]
["Oxfordshire Primary Education Network (OPEN)",4,null,null,"Vale Academy Trust",1]
["Radcliffe Academy Trust",1,null,null,"Grand Total",22]
["Ridgeway Education Trust",7]
["River Learning Trust",23,null,null,"Abingdon Learning Trust",{"$f":"GETPIVOTDATA(\"Schools in Sponsor Trusts\",$A$167,\"Trust / sponsor details\",\"Abingdon Learning Trust (ALT)\")","v":3},{"$f":"IF(IFERROR(VLOOKUP(E184,$A$167:$B$203,2,FALSE),0)+IFERROR(VLOOKUP(E184,$E$167:$F$176,2,FALSE),0)=VLOOKUP(E184,$E$180:$F$222,2,FALSE),\"OK\",\"Error\")","v":"OK"}]
["Thame Partnership Academy Trust",1,null,null,"Acer Trust",{"$f":"GETPIVOTDATA(\"Schools in Sponsor Trusts\",$A$167,\"Trust / sponsor details\",\"Acer Trust\")","v":9},{"$f":"IF(IFERROR(VLOOKUP(E185,$A$167:$B$203,2,FALSE),0)+IFERROR(VLOOKUP(E185,$E$167:$F$176,2,FALSE),0)=VLOOKUP(E185,$E$180:$F$222,2,FALSE),\"OK\",\"Error\")","v":"OK"}]
["The Circle Trust",1,null,null,"Activate Learning Education Trust",{"$f":"GETPIVOTDATA(\"Schools in Sponsor Trusts\",$A$167,\"Trust / sponsor details\",\"Activate Learning Education Trust\")+GETPIVOTDATA(\"Trust name / sponsor\",$E$167,\"Trust name / sponsor\",\"Activate Learning Education Trust\")","v":2},{"$f":"IF(IFERROR(VLOOKUP(E186,$A$167:$B$203,2,FALSE),0)+IFERROR(VLOOKUP(E186,$E$167:$F$176,2,FALSE),0)=VLOOKUP(E186,$E$180:$F$222,2,FALSE),\"OK\",\"Error\")","v":"OK"}]
["The Gallery Trust",6,null,null,"Aspirations Academy Trust (AAT)",{"$f":"GETPIVOTDATA(\"Schools in Sponsor Trusts\",$A$167,\"Trust / sponsor details\",\"Aspirations Academy Trust (AAT)\")+GETPIVOTDATA(\"Trust name / sponsor\",$E$167,\"Trust name / sponsor\",\"Aspirations Academy Trust (AAT)\")","v":4},{"$f":"IF(IFERROR(VLOOKUP(E186,$A$167:$B$203,2,FALSE),0)+IFERROR(VLOOKUP(E186,$E$167:$F$176,2,FALSE),0)=VLOOKUP(E186,$E$180:$F$222,2,FALSE),\"OK\",\"Error\")","v":"OK"}]
["The Langtree School Academy Trust",1,null,null,"Burford School",{"$f":"GETPIVOTDATA(\"Schools in Sponsor Trusts\",$A$167,\"Trust / sponsor details\",\"Burford School\")","v":1},{"$f":"IF(IFERROR(VLOOKUP(E188,$A$167:$B$203,2,FALSE),0)+IFERROR(VLOOKUP(E188,$E$167:$F$179,2,FALSE),0)=VLOOKUP(E188,$E$180:$F$222,2,FALSE),\"OK\",\"Error\")","v":"OK"}]
["The Merchant Taylors Oxfordshire Academy Trust Ltd",2,null,null,"Anthem Schools Trust",{"$f":"GETPIVOTDATA(\"Schools in Sponsor Trusts\",$A$167,\"Trust / sponsor details\",\"Anthem Schools Trust\")","v":2},{"$f":"IF(IFERROR(VLOOKUP(E189,$A$167:$B$203,2,FALSE),0)+IFERROR(VLOOKUP(E189,$E$167:$F$179,2,FALSE),0)=VLOOKUP(E189,$E$180:$F$222,2,FALSE),\"OK\",\"Error\")","v":"OK"}]
["The Mill Academy",3,null,null,"Europa School Trust",{"$f":"GETPIVOTDATA(\"Trust name / sponsor\",$E$167,\"Trust name / sponsor\",\"Europa School Trust\")","v":1},{"$f":"IF(IFERROR(VLOOKUP(E190,$A$167:$B$203,2,FALSE),0)+IFERROR(VLOOKUP(E190,$E$167:$F$176,2,FALSE),0)=VLOOKUP(E190,$E$180:$F$222,2,FALSE),\"OK\",\"Error\")","v":"OK"}]
["The Pope Francis MAC",11,null,null,"Eynsham Partnership Academy",{"$f":"GETPIVOTDATA(\"Schools in Sponsor Trusts\",$A$167,\"Trust / sponsor details\",\"Eynsham Partnership Academy\")+GETPIVOTDATA(\"Trust name / sponsor\",$E$176,\"Trust name / sponsor\",\"Eynsham Partnership Academy\")","v":10},{"$f":"IF(IFERROR(VLOOKUP(E190,$A$167:$B$199,2,FALSE),0)+IFERROR(VLOOKUP(E190,$E$167:$F$179,2,FALSE),0)=VLOOKUP(E190,$E$184:$F$213,2,FALSE),\"OK\",\"Error\")","v":"OK"}]
["The Propeller Academy Trust",3,null,null,"Faringdon Learning Trust",{"$f":"GETPIVOTDATA(\"Schools in Sponsor Trusts\",$A$167,\"Trust / sponsor details\",\"Faringdon Learning Trust\")","v":9},{"$f":"IF(IFERROR(VLOOKUP(E191,$A$167:$B$199,2,FALSE),0)+IFERROR(VLOOKUP(E191,$E$167:$F$179,2,FALSE),0)=VLOOKUP(E191,$E$184:$F$213,2,FALSE),\"OK\",\"Error\")","v":"OK"}]
["The Warriner Multi Academy Trust",6,null,null,"Omnia Learning Trust",{"$f":"GETPIVOTDATA(\"Trust name / sponsor\",$E$167,\"Trust name / sponsor\",\"Omnia Learning Trust\")","v":3},{"$f":"IF(IFERROR(VLOOKUP(E192,$A$167:$B$199,2,FALSE),0)+IFERROR(VLOOKUP(E192,$E$167:$F$179,2,FALSE),0)=VLOOKUP(E192,$E$184:$F$213,2,FALSE),\"OK\",\"Error\")","v":"OK"}]
["The White Horse Federation",2,null,null,"Gillots School",{"$f":"GETPIVOTDATA(\"Schools in Sponsor Trusts\",$A$167,\"Trust / sponsor details\",\"Gillots School\")","v":1},{"$f":"IF(IFERROR(VLOOKUP(E193,$A$167:$B$199,2,FALSE),0)+IFERROR(VLOOKUP(E193,$E$167:$F$179,2,FALSE),0)=VLOOKUP(E193,$E$184:$F$213,2,FALSE),\"OK\",\"Error\")","v":"OK"}]
["United Learning Trust (ULT)",6,null,null,"GLF Schools",{"$f":"GETPIVOTDATA(\"Schools in Sponsor Trusts\",$A$167,\"Trust / sponsor details\",\"GLF Schools\")+GETPIVOTDATA(\"Trust name / sponsor\",$E$173,\"Trust name / sponsor\",\"GLF Schools\")","v":7},{"$f":"IF(IFERROR(VLOOKUP(E194,$A$167:$B$199,2,FALSE),0)+IFERROR(VLOOKUP(E194,$E$167:$F$179,2,FALSE),0)=VLOOKUP(E194,$E$184:$F$213,2,FALSE),\"OK\",\"Error\")","v":"OK"}]
["Vale Academy Trust",8,null,null,"MacIntyre Academy Trust",{"$f":"GETPIVOTDATA(\"Trust name / sponsor\",$E$167,\"Trust name / sponsor\",\"MacIntyre Academy Trust\")","v":1},{"$f":"IF(IFERROR(VLOOKUP(E195,$A$167:$B$203,2,FALSE),0)+IFERROR(VLOOKUP(E195,$E$167:$F$176,2,FALSE),0)=VLOOKUP(E195,$E$180:$F$222,2,FALSE),\"OK\",\"Error\")","v":"OK"}]
["(blank)",1,null,null,"Maiden Erlegh Trust",{"$f":"GETPIVOTDATA(\"Schools in Sponsor Trusts\",$A$167,\"Trust / sponsor details\",\"Maiden Erlegh Trust\")","v":1},{"$f":"IF(IFERROR(VLOOKUP(E196,$A$167:$B$203,2,FALSE),0)+IFERROR(VLOOKUP(E196,$E$167:$F$176,2,FALSE),0)=VLOOKUP(E196,$E$180:$F$222,2,FALSE),\"OK\",\"Error\")","v":"OK"}]
["Grand Total",160,null,null,"Oxford Diocesan Schools Trust",{"$f":"GETPIVOTDATA(\"Schools in Sponsor Trusts\",$A$167,\"Trust / sponsor details\",\"Oxford Diocesan Schools Trust\")+GETPIVOTDATA(\"Trust name / sponsor\",$E$167,\"Trust name / sponsor\",\"Oxford Diocesan Schools Trust\")","v":34},{"$f":"IF(IFERROR(VLOOKUP(E197,$A$167:$B$196,2,FALSE),0)+IFERROR(VLOOKUP(E197,$E$167:$F$179,2,FALSE),0)=VLOOKUP(E197,$E$180:$F$213,2,FALSE),\"OK\",\"Error\")","v":"OK"}]
[null,null,null,null,"Oxfordshire Primary Education Network (OPEN)",{"$f":"GETPIVOTDATA(\"Schools in Sponsor Trusts\",$A$167,\"Trust / sponsor details\",\"Oxfordshire Primary Education Network (OPEN)\")","v":4},{"$f":"IF(IFERROR(VLOOKUP(E198,$A$167:$B$196,2,FALSE),0)+IFERROR(VLOOKUP(E198,$E$167:$F$179,2,FALSE),0)=VLOOKUP(E198,$E$180:$F$213,2,FALSE),\"OK\",\"Error\")","v":"OK"}]
[null,null,null,null,"The Propeller Academy Trust",{"$f":"GETPIVOTDATA(\"Schools in Sponsor Trusts\",$A$167,\"Trust / sponsor details\",\"The Propeller Academy Trust\")","v":3},{"$f":"IF(IFERROR(VLOOKUP(E198,$A$167:$B$203,2,FALSE),0)+IFERROR(VLOOKUP(E198,$E$167:$F$176,2,FALSE),0)=VLOOKUP(E198,$E$180:$F$222,2,FALSE),\"OK\",\"Error\")","v":"OK"}]
[null,null,null,null,"Radcliffe Academy Trust",{"$f":"GETPIVOTDATA(\"Schools in Sponsor Trusts\",$A$167,\"Trust / sponsor details\",\"Radcliffe Academy Trust\")","v":1},{"$f":"IF(IFERROR(VLOOKUP(E199,$A$167:$B$203,2,FALSE),0)+IFERROR(VLOOKUP(E199,$E$167:$F$176,2,FALSE),0)=VLOOKUP(E199,$E$180:$F$222,2,FALSE),\"OK\",\"Error\")","v":"OK"}]
[null,null,null,null,"Ridgeway Education Trust",{"$f":"GETPIVOTDATA(\"Schools in Sponsor Trusts\",$A$167,\"Trust / sponsor details\",\"Ridgeway Education Trust\")","v":7},{"$f":"IF(IFERROR(VLOOKUP(E200,$A$167:$B$203,2,FALSE),0)+IFERROR(VLOOKUP(E200,$E$167:$F$176,2,FALSE),0)=VLOOKUP(E200,$E$180:$F$222,2,FALSE),\"OK\",\"Error\")","v":"OK"}]
[null,null,null,null,"River Learning Trust",{"$f":"GETPIVOTDATA(\"Schools in Sponsor Trusts\",$A$167,\"Trust / sponsor details\",\"River Learning Trust\")+GETPIVOTDATA(\"Trust name / sponsor\",$E$176,\"Trust name / sponsor\",\"River Learning Trust\")","v":26},{"$f":"IF(IFERROR(VLOOKUP(E201,$A$167:$B$203,2,FALSE),0)+IFERROR(VLOOKUP(E201,$E$167:$F$176,2,FALSE),0)=VLOOKUP(E201,$E$180:$F$222,2,FALSE),\"OK\",\"Error\")","v":"OK"}]
[null,null,null,null,"Thame Partnership Academy Trust",{"$f":"GETPIVOTDATA(\"Schools in Sponsor Trusts\",$A$167,\"Trust / sponsor details\",\"Thame Partnership Academy Trust\")","v":1},{"$f":"IF(IFERROR(VLOOKUP(E202,$A$167:$B$201,2,FALSE),0)+IFERROR(VLOOKUP(E202,$E$167:$F$179,2,FALSE),0)=VLOOKUP(E202,$E$180:$F$222,2,FALSE),\"OK\",\"Error\")","v":"OK"}]
[null,null,null,null,"The Circle Trust",{"$f":"GETPIVOTDATA(\"Schools in Sponsor Trusts\",$A$167,\"Trust / sponsor details\",\"The Circle Trust\")","v":1},{"$f":"IF(IFERROR(VLOOKUP(E203,$A$167:$B$201,2,FALSE),0)+IFERROR(VLOOKUP(E203,$E$167:$F$179,2,FALSE),0)=VLOOKUP(E203,$E$180:$F$222,2,FALSE),\"OK\",\"Error\")","v":"OK"}]
[null,null,null,null,"The Gallery Trust",{"$f":"GETPIVOTDATA(\"Schools in Sponsor Trusts\",$A$167,\"Trust / sponsor details\",\"The Gallery Trust\")","v":6},{"$f":"IF(IFERROR(VLOOKUP(E203,$A$167:$B$203,2,FALSE),0)+IFERROR(VLOOKUP(E203,$E$167:$F$176,2,FALSE),0)=VLOOKUP(E203,$E$180:$F$222,2,FALSE),\"OK\",\"Error\")","v":"OK"}]
[null,null,null,null,"The Langtree School Academy Trust",{"$f":"GETPIVOTDATA(\"Schools in Sponsor Trusts\",$A$167,\"Trust / sponsor details\",\"The Langtree School Academy Trust\")","v":1},{"$f":"IF(IFERROR(VLOOKUP(E205,$A$167:$B$203,2,FALSE),0)+IFERROR(VLOOKUP(E205,$E$167:$F$176,2,FALSE),0)=VLOOKUP(E205,$E$180:$F$222,2,FALSE),\"OK\",\"Error\")","v":"OK"}]
[null,null,null,null,"The Merchant Taylors Oxfordshire Academy Trust Ltd",{"$f":"GETPIVOTDATA(\"Schools in Sponsor Trusts\",$A$167,\"Trust / sponsor details\",\"The Merchant Taylors Oxfordshire Academy Trust Ltd\")","v":2},"OK"]
[null,null,null,null,"The Mill Academy",{"$f":"GETPIVOTDATA(\"Schools in Sponsor Trusts\",$A$167,\"Trust / sponsor details\",\"The Mill Academy\")","v":3},"OK"]
[null,null,null,null,"The Pope Francis MAC",{"$f":"GETPIVOTDATA(\"Schools in Sponsor Trusts\",$A$167,\"Trust / sponsor details\",\"The Pope Francis MAC\")","v":11},"OK"]
[null,null,null,null,"The Warriner Multi Academy Trust",{"$f":"GETPIVOTDATA(\"Schools in Sponsor Trusts\",$A$167,\"Trust / sponsor details\",\"The Warriner Multi Academy Trust\")","v":6},"OK"]
["Phase","No. of schools",null,null,"The White Horse Federation",{"$f":"GETPIVOTDATA(\"Schools in Sponsor Trusts\",$A$167,\"Trust / sponsor details\",\"The White Horse Federation\")+GETPIVOTDATA(\"Trust name / sponsor\",E167:F178,\"Trust name / sponsor\",\"The White Horse Federation\")","v":4},"OK"]
["Pri",113,null,null,"United Learning Trust (ULT)",{"$f":"GETPIVOTDATA(\"Schools in Sponsor Trusts\",$A$167,\"Trust / sponsor details\",\"United Learning Trust (ULT)\")","v":6},{"$f":"IF(IFERROR(VLOOKUP(E211,$A$167:$B$201,2,FALSE),0)+IFERROR(VLOOKUP(E211,$E$167:$F$179,2,FALSE),0)=VLOOKUP(E211,$E$180:$F$214,2,FALSE),\"OK\",\"Error\")","v":"OK"}]
["Sec",33,null,null,"Vale Academy Trust",{"$f":"GETPIVOTDATA(\"Schools in Sponsor Trusts\",$A$167,\"Trust / sponsor details\",\"Vale Academy Trust\")","v":8},{"$f":"IF(IFERROR(VLOOKUP(E212,$A$167:$B$203,2,FALSE),0)+IFERROR(VLOOKUP(E212,$E$167:$F$176,2,FALSE),0)=VLOOKUP(E212,$E$180:$F$222,2,FALSE),\"OK\",\"Error\")","v":"OK"}]
["Spec",10,null,null,"Grand Total",{"$f":"SUM(F183:F213)","v":178}]
["Inf",2]
["Jun",1]
["Pri X",1]
["Grand Total",160]

{"sheet":"Converting","index":2,"n_rows":12,"n_cols":10,"rows_kept":12,"cut":false,"hidden":false,"merged":[]}
["Name of converting establishment","Phase","Age Range","DfE code","Type of School","Programmed Conversion Date","Type of Conversion - Voluntary or Sponsored","Type of Trust","Trust / sponsor details","Additional Comments"]
["St Mary's Catholic Primary, Bicester","Pri","4-11",3824,"VA","2024-10-01","Voluntary","MAT","Pope Francis MAC","Academy order approved at March Advisory Board"]
["Stephen Freeman Community School","Pri","3-11",2594,"Com","2024-11-01","Voluntary","MAT","Ridgeway Education Trust","Academy Order received at May advisory Board"]
["Woodeaton Manor School","Spec","2-19",7002,"SP","2025-02-01","Sponsored Academy brokered by DfE","MAT","The Propeller Trust","Academy order received.  Sponsor now approved by DfE"]
[]
[]
[]
[null,null,null,null,null,null,"Trust / Sponsor","No of Schs"]
[null,null,null,null,null,null,"Ridgeway Education Trust",1]
[null,null,null,null,null,null,"Pope Francis MAC",1]
[null,null,null,null,null,null,"The Propeller Trust",1]
[null,null,null,null,null,null,"Grand Total",3]

{"sheet":"Consulting","index":3,"n_rows":6,"n_cols":10,"rows_kept":6,"cut":false,"hidden":false,"merged":[]}
["Name of converting establishment","Phase","Age Range","DfE code","Type of School","Provisional Conversion Date","Type of Conversion - Voluntary or Sponsored","Type of Trust","Trust / sponsor details","Additional Comments"]
["St Michael's CE Pri (Steventon)","Pri","3-11",3241,"VC","Unknown","Voluntary","MAT","Abingdon Learning Trust"]
["Sacred Heart Catholic Primary (Henley-on-Thames)","Pri","4-11",3820,"VA","Unknown","Voluntary","MAT","Pope Francis MAC","Submitted EOI to DfE"]
["Church Cowley St James CE (Controlled) Primary","Pri","3-11",3210,"VC","Unknown","Voluntary","MAT","River Learning Trust"]
["Edward Feild Primary","Pri","4-11",2590,"COM","Unknown","Voluntary","MAT","River Learning Trust","Notified of intent 21/06/2023"]
["Fringford CE Primary","Pri","4-11",3083,"VC","Unknown","Voluntary","MAT","The Warriner MAT","Submitted EOI to DfE"]

{"sheet":"New schs since 2013","index":4,"n_rows":36,"n_cols":11,"rows_kept":36,"cut":false,"hidden":false,"merged":[]}
["'\"New\" schools refer to schools opened since 2013 (the academies programme start)"]
["New open academies","Trust name / sponsor","DfE code","No. of places","Type of Academy","Planned opening date","Opened","Age range","Phase","Additional information","Additional Comments"]
["Bloxham Grove Academy","The Gallery Trust",7009,100,"Special Free School","2024-01-01","2024-01-11","7-18","Spec","100 places SEMH/ASD.  Free school","School opened in Satellite at Longford Park 1st September "]
["St Johns Cof E Academy (Primary Phase)","Vale Academy Trust",4022,420,"All through","2023-09-01","2023-09-18","2-11","all through","Primary phase of all through school.  Secondary phase due to open in September 24","2FE primary and 4 FE Secondary (No Sixth Form) including 90 FTE nursery"]
["Sires Hill Primary Academy","Omnia Learning Trust",2040,420,"Primary Academy","2023-09-01","2023-09-11","2-11","Pri","2 FE primary plus nursery"]
["Graven Hill","The Warriner MAT",2041,420,"Primary academy","2023-09-01","2023-09-11","2-11","Pri","2 FE including 90 Fte Nursery places"]
["Windrush CofE Primary School (West Witney)","River Learning Trust",2038,315,"Primary school academy","2021-09-01","2021-09-01","2-11","Pri","45fte nursery for 2- and 3-year-olds.\n6 places for specialist resourced provision - communication and interaction needs, physical or sensory needs.    "]
["St Frideswide CE Primary School","ODST",2037,420,"Primary school academy","2020-11-01","2020-11-01","3-11","Pri","This school opened following the De- amalgamation of St Gregory the Great and is part of ODST"]
["Wantage Primary School (Kingsgrove/Crab Hill)","Omnia Learning Trust",2033,420,"Primary school academy","2020-09-01","2020-09-14","3-11","Pri","2 FE including Nursey - Number of places TBC\nAgreed delayed opening by two weeks with DfE.","Previously GEMS learning trust and GEMS Wantage Primary Academy. Name changed March 2021"]
["Cherry Fields Primary school (Southam Road)","GLF Schools",2036,210,"Primary school academy","2020-09-01","2020-09-01","3-11","Pri","39 fte places for 2- and 3-year-olds. Inclusive of 6 places reserved for specialist resourced provision."]
["Barton Park Primary School (Barton West)","River Learning Trust",2034,420,"Primary school academy","2020-09-01","2020-09-01","3-11","Pri","26fte nursery for 3-year-olds; EY accommodation would also provide option for 2-year-old places, at least while school remains at 1.5fe.8 places places for specialist resourced provision - behaviour, emotional and social difficulties. ","Community Schools Alliance trust (CSAT) rebrokered to River Learning Trust on 1st Feb 2022"]
["Whitelands Academy (SW Bicester)","The White Horse Federation",4017,600,"Secondary free school (academy)","2020-09-01","2020-09-01","11-16","Sec",null,"Opened in Gagle Brook Primary School.  Ocupation of new building expected from 2nd November 2020."]
["Swan School","River Learning Trust",4016,880,"Secondary school academy","2019-09-01","2019-09-02","11-18","Sec","4FE Secondary Free School","To meet demand for places in Oxford City. 4FE in September 2019 rising to 6FE in September 2019"]
["Aureus Primary School , Great Western Park, Didcot (Formally Chalkhill)","GLF Schools",2011,420,"Primary school academy","2018-09-01","2018-09-03","3-11","Pri","26fte nursery for 3-year-olds","To meet demand from new housing development in Great Western Park. A private day nursery will be opened close to the first primary school - planned for 2018"]
["Gagle Brook Primary School (NW Bicester eco-town)","The White Horse Federation",null,210,"Primary school academy","2018-09-01","2018-09-01","3-11","Pri","26fte nursery for 3-year-olds; EY accommodation may also provide option for 2-year-old places until school reaches full operating size.\n8 places places for specialist resourced provision - communication and interaction needs, physical or sensory needs. ","To meet demand from new housing development.\n"]
["Aureus Secondary School, Great Western Park, Didcot","GLF Schools",4004,1200,"Secondary school academy","2017-09-01","2017-09-11","11-16","Sec","GLF Schools - approved by SoS subject to funding agreement","To meet demand from new housing development in Great Western Park.  Co-location with UTC (due to open 2015)"]
["Longford Park Primary, Banbury (Bankside)","GLF Schools",2017,420,"Primary school academy","2017-09-01","2017-09-07","4-11","Pri","39fte nursery for 2- and 3-year-olds.\n6 places places for specialist resourced provision - communication and interaction needs, physical or sensory needs.  ","To meet demand from new housing development."]
["Didcot Primary Academy (Great Western Park)","Omnia Learning Trust",2012,420,"Primary school academy","2016-09-01","2016-09-07","3-11","Pri",null,"Previously GEMS learning trust and GEMS Didcot Primary Academy. Name changed March 2021"]
["UTC Oxfordshire (at Didcot)","Activate Learning Education Trust",4008,350,"UTC","2015-09-01","2015-09-07","14-19","UTC"]
["Futures Institute, Banbury","Aspirations Academy Trust (AAT)",4006,300,"Studio School","2014-09-01","2014-09-01","14-19","Studio","Previously known as Banbury Space Studio (Changed name Sep 19)"]
["Endeavour Academy (MacIntyre Academy for Autistic Pupils)","MacIntyre Academy Trust",7003,25,"Special ","2014-09-01","2014-09-01","11-19","Spec"]
["Europa","Europa School Trust",4002,null,"All through","2013-09-01","2013-09-01","4-19","all through","Languages school"]
["Heyford Park Free School","Eynsham Partnership Academy",4018,840,"All through","2013-09-01","2013-09-01","4-19","all through","Rebrokered to Eynsham Partnership 1st November 2020 previous DfE 4003"]
["Tyndale Community Primary Free School","ODST",2008,470,"Primary","2013-09-01","2013-09-01","4-11","Pri","Rebrokered to ODST May 2020 - previously Chapel Street Community School Trust"]
[]
["* The Bicester Technology Studio closed in August 2021 and is now part of The Bicester School."]
[]
[]
["Row Labels","Count of Phase"]
["all through",3]
["Pri",12]
["Sec",3]
["Spec",2]
["Studio",1]
["UTC",1]
["Grand Total",22]

{"sheet":"Approved new schools","index":5,"n_rows":12,"n_cols":11,"rows_kept":12,"cut":false,"hidden":false,"merged":[]}
["New academies with confirmed opening dates","Trust name / sponsor","DfE code","No. of places","Type of Academy","Planned opening date","Opened","Age range","Phase","Additional information","Additional Comments"]
["Special Free School (Faringdon)","The Gallery Trust",null,118,"Special Free School","2025-09-01",null,"7-18","Spec","118 places SEMH/ASD.  Free school"]
["Primary Academy (Valley Park, Didcot)","TBC",null,630,"Primary School","2026-09-01",null,"2-11","Pri","3FE Primary plus nursery"]
[]
["New School Stats at a glance:"]
["Age range","(All)"]
[]
["Academy Type","Column Labels"]
["Row Labels","Pri","Spec","Grand Total"]
["Special Free School",0,1,1]
["Primary School",1,0,1]
["Grand Total",1,1,2]

{"sheet":"New schs awaiting approval","index":6,"n_rows":2,"n_cols":10,"rows_kept":2,"cut":false,"hidden":false,"merged":[]}
["Proposed new academies opening date not yet approved","Type of school","DfE Code","Size","Age range","Proposed opening date","Progress","Nursery and SEN","(Potential) Sponsor/s","Additional comments"]
["Special Free School (Didcot)","SEN",null,null,null,"2028-01-01",null,null,null,"Dependent on delivery of site"]

{"sheet":"Maintained","index":7,"n_rows":126,"n_cols":12,"rows_kept":126,"cut":false,"hidden":false,"merged":[]}
["Establishment Name","Phase","DFE","TYPE","Diocese","Age range",null,null,null,null,null,"Click on the sch name in col A, then click the button to the left to move a school to the consulting tab"]
["Appleton CE (A) Primary","Pri",3850,"VA","Oxford","4-11",null,"above to move a school to the consulting tab"]
["Aston & Cote CofE Primary","Pri",3120,"VC","na","4-11"]
["Aston Rowant CofE Primary","Pri",3180,"VA","na","4-11"]
["Barley Hill Primary","Pri",2463,"COM","na","4-11"]
["Bladon CofE Primary","Pri",3146,"VC","na","4-11"]
["Bletchingdon Parochial CofE Primary","Pri",3141,"VA","Oxford","3-11"]
["Bloxham CofE Primary","Pri",3064,"VC","na","4-11"]
["Brookside Primary","Pri",2202,"COM","na","3-11"]
["Bure Park Primary","Pri",2610,"COM","na","3-11"]
["Caldecott Primary","Pri",2605,"COM","na","3-11"]
["Carswell Community Primary","Pri",2595,"COM","na","3-11"]
["Chadlington CofE  Primary","Pri",3043,"VC","na","4-11"]
["Charlton-On-Otmoor CE Primary","Pri",3081,"VC","na","3-11"]
["Checkendon CofE  (A) Primary","Pri",3801,"VA","Oxford","4-11"]
["Chesterton CE Primary","Pri",3082,"VA","Oxford","4-11"]
["Chilton County Primary","Pri",2555,"COM","na","3-11"]
["Clanfield CofE Primary","Pri",3100,"VC","na","4-11"]
["Clifton Hampden CofE Primary","Pri",3183,"VC","na","4-11"]
["Combe CofE Primary","Pri",3142,"VC","na","4-11"]
["Crowmarsh Gifford CofE  School","Pri",3200,"VC","na","4-11"]
["Cumnor CE School (VC)","Pri",3223,"VC","na","4-11"]
["Dorchester St Birinus CofE School","Pri",3186,"VC","na","4-11"]
["Drayton CP School","Pri",2560,"COM","na","4-11"]
["Dry Sandford Primary","Pri",2565,"COM","na","4-11"]
["Ducklington Primary","Pri",3122,"VC","na","4-11"]
["Dunmore Primary","Pri",3861,"COM","na","3-11"]
["East Oxford Primary","Pri",2525,"COM","na","3-11"]
["Enstone Primary","Pri",2103,"COM","na","4-11"]
["Ewelme CofE Primary","Pri",3752,"VA","Oxford","4-11"]
["Five Acres Primary","Pri",2200,"COM","na","3-11"]
["Gateway Primary","Pri",2254,"COM","na","4-11"]
["Goring CE Aided Primary","Pri",3803,"VA","Oxford","4-11"]
["Great Milton CE Primary","Pri",3187,"VC","na","4-11"]
["Great Rollright CE (Aided) Primary","Pri",3408,"VA","Oxford","4-11"]
["Great Tew County Primary","Pri",2104,"COM","na","4-11"]
["Hailey CofE Primary","Pri",3123,"VC","na","3-11"]
["Harwell Primary","Pri",2563,"COM","na","4-11"]
["Hook Norton CofE Primary","Pri",3044,"VC","na","3-11"]
["John Hampden Primary","Pri",2591,"COM","na","3-11"]
["Kingham Pri  School","Pri",2106,"COM","na","4-11"]
["King's Meadow School","Pri",2210,"COM","na","3-11"]
["Kirtlington CofE Primary","Pri",3500,"VA","Oxford","4-11"]
["Langford Village Community School","Pri",2608,"COM","na","3-11"]
["Launton CofE Primary","Pri",3085,"VC","na","3-11"]
["Lewknor CofE Primary","Pri",3184,"VC","na","4-11"]
["Little Milton CofE Primary","Pri",3755,"VA","Oxford","4-11"]
["Long Furlong Primary","Pri",2602,"COM","na","3-11"]
["Longworth Primary School","Pri",3234,"VA","Oxford","5-11"]
["Longfields Pri and Nursery School","Pri",2207,"COM","na","3-11"]
["Marcham CE (VC) Primary","Pri",3235,"VC","na","4-11"]
["Marsh Baldon CE (Controlled) School","Pri",3188,"VC","na","4-11"]
["Mill Lane School","Pri",2465,"COM","na","3-11"]
["Nettlebed Community School","Pri",2504,"COM","na","4-11"]
["New Hinksey CofE Primary","Pri",3213,"VC","na","3-11"]
["North Kidlington Primary","Pri",2357,"COM","na","4-11"]
["Orchard Fields Community Primary","Pri",2055,"COM","na","3-11"]
["Peppard CofE Primary","Pri",3205,"VC","na","4-11"]
["Queensway School","Pri",2057,"COM","na","4-11"]
["Radley CofE Primary","Pri",3238,"VC","na","3-11"]
["RAF Benson Community Primary","Pri",2450,"COM","na","4-11"]
["Shellingford CE (VA) School","Pri",3853,"VA","Oxford","4-11"]
["Shenington CofE Primary","Pri",5200,"VA","Oxford","4-11"]
["Shiplake CofE School","Pri",3810,"VA","Oxford","4-11"]
["Sonning Common Primary","Pri",2506,"COM","na","4-11"]
["South Stoke Community School","Pri",2507,"COM","na","4-11"]
["St Aloysius' Catholic Primary","Pri",3842,"VA","B'ham","4-11"]
["St Amand's Catholic Primary","Pri",3855,"VA","Portsm'th","4-11"]
["St Andrew's CofE Primary","Pri",3211,"VC","na","4-11"]
["St Andrew's CofE Primary, Chinnor","Pri",3182,"VC","na","4-11"]
["St Barnabas' CofE (Aided) Primary","Pri",3832,"VA","Oxford","3-11"]
["St Blaise CE Primary","Pri",3260,"VC","na","4-11"]
["St Ebbe's CE (Aided) Primary","Pri",3833,"VA","Oxford","4-11"]
["St Edburg's CofE  (VA) School","Pri",2505,"VA","Oxford","3-11"]
["St Edmund's Catholic Primary","Pri",3856,"VA","Portsm'th","3-11"]
["St John The Evangelist CE (A) Primary","Pri",2613,"VA","Oxford","3-11"]
["St Joseph's Catholic Primary (Oxford)","Pri",3838,"VA","B'ham","4-11"]
["St Kenelm's CofE (VC) School","Pri",3125,"VC","na","4-11"]
["St Leonard's CE Primary","Pri",3262,"VC","na","3-11"]
["St Mary & St John CofE Primary","Pri",3834,"VA","Oxford","4-11"]
["St Mary's CE (Aided) Primary (Chipping Norton)","Pri",3858,"VA","Oxford","4-11"]
["St Michael's CofE Primary","Pri",3216,"VA","Oxford","4-11"]
["St Nicholas' Primary","Pri",2352,"COM","na","3-11"]
["St Nicolas CE Primary (Abingdon)","Pri",3247,"VC","na","4-11"]
["St Philip & St James CofE Aided School","Pri",3835,"VA","Oxford","4-11"]
["St Swithun's CofE Primary","Pri",3258,"VC","na","3-11"]
["Stanford-In-The-Vale CE Primary","Pri",3240,"VC","na","3-11"]
["Stockham Primary","Pri",2583,"COM","na","4-11"]
["Stoke Row CofE School","Pri",3206,"VA","Oxford","4-11"]
["Stonesfield School","Pri",2353,"COM","na","4-11"]
["Sunningwell CofE Primary","Pri",3242,"VC","na","4-11"]
["Tetsworth Primary","Pri",2456,"COM","na","4-11"]
["The Grange School","Pri",2058,"COM","na","4-11"]
["The Ridgeway CE (C) Primary","Pri",3231,"VC","na","4-11"]
["Thomas Reade Primary","Pri",2587,"COM","na","3-11"]
["Trinity CofE Primary","Pri",3254,"VC","na","4-11"]
["Valley Road School","Pri",2512,"COM","na","4-11"]
["West Oxford Community Primary","Pri",2533,"COM","na","3-11"]
["West Witney County Primary","Pri",2601,"COM","na","3-11"]
["Whitchurch County Primary","Pri",2208,"COM","na","4-11"]
["William Fletcher Primary","Pri",2354,"COM","na","4-11"]
["Windmill Primary","Pri",2527,"COM","na","4-11"]
["Wood Farm Primary","Pri",2589,"COM","na","4-11"]
["Woodcote Primary","Pri",2510,"COM","na","4-11"]
["Woodstock CofE Primary","Pri",3145,"VC","na","3-11"]
["Wootton St Peter CofE  School","Pri",3854,"VA","Oxford","4-11"]
["Wychwood CE Primary","Pri",3257,"VC","na","3-11"]
["Uffington CE Primary","Pri",3251,"VC","Oxford","3-11"]
["Carterton Community College","Sec",4041,"LEA","na","11-18"]
["Frank Wise School","Spec",7010,"SP","na","2-19"]
["John Watson School","Spec",7011,"LEA","na","2-19"]
["Oxfordshire Hospital School","Spec",7017,"COM","na","2-19"]
[]
["Nurseries"]
["Establishment Name","Phase","DFE","TYPE","Diocese","Age range"]
["Comper Foundation Stage School","Foundation Stage",1005,"COM","na","to 4"]
["Grandpont Nursery & Children's Centre","Foundation Stage",1010,"COM","na","to 4"]
["Headington Quarry Foundation Stage School","Foundation Stage",1006,"COM","na","to 4"]
["Lydalls Nursery School","Foundation Stage",1017,"COM","na","to 4"]
["Slade Foundation Stage  School","Foundation Stage",1011,"COM","na","to 4"]
["The Ace Centre Nursery School","Foundation Stage",1019,"COM","na","to 4"]
["Wheatley Nursery School","Foundation Stage",1031,"COM","na","to 4"]
[]
["Other establishments"]
["Establishment Name","Phase","DFE","TYPE","Diocese","Age range"]
["Virtual School for Looked After Children","Virtual School","na","COM","na","0-25"]

{"sheet":"Halted conversions","index":8,"n_rows":15,"n_cols":12,"rows_kept":15,"cut":false,"hidden":false,"merged":[]}
["Schools which have previously consulted on academy status but are currently taking no further action"]
["Name of converting establishment","Column1","Phase","Column2","DfE code","Column3","Type of School","Programmed Conversion Date","Type of Conversion - Voluntary or Sponsored","Type of Trust","Trust / sponsor details","Additional Comments"]
["Ducklington",null,"Pri",null,3122,null,"VC",null,"Was a voluntary Converter",null,null,"Was going to join the Mill Academy."]
["Cumnor C of E Primary School ",null,"Pri",null,3223,null,"Controlled",null,"Consulted - taking no further action",null,null,"currently looking at other options as received recent 'good' ofsted rating and therefore may not go down sponsored route. "]
["Barley Hill Primary School",null,"Pri",null,2463,null,"Community",null,"Consulted - taking no further action"]
["Gateway Primary School",null,"Pri",null,2245,null,"Community",null,"Consulted - taking no further action","MAT",null,"Carterton MAT group have now withdrawn their application and are considering other collaborative options i.e collaborative companies"]
["Carterton Primary School",null,"Pri",null,2252,null,"Community",null,"Consulted - taking no further action","MAT"]
["Carterton Community College",null,"Sec",null,4041,null,"Community",null,"Consulted - taking no further action","MAT"]
["Aston & Cote",null,"Pri",null,3120,null,"VC",null,"Consulted - taking no further action (Dec 16)",null,null,"consulting on options with local schools and parents, looking at a MAT w local partners as best option"]
["St Amand's Catholic Primary",null,"Pri",null,3855,null,"VA",null,"Consulted - taking no further action (Jun 17)",null,"Frassati Catholic Academy Trust","Governors of  St Amand’s postponed application for an Academy Order and will not be converting to the Frassati MAT in February 2018 (aspirational date)."]
["St Michael's CE Pri (Steventon)",null,"Pri",null,null,null,"VC",null,"submitted application to DfE - but taking no further action July 2019"]
["St Ebbe's CE (Aided) Primary",null,"Pri",null,null,null,"VA",null,"submitted application to DfE - but taking no further action July 2019"]
["Oxfordshire Hospital School",null,"Spec",null,7017,null,"Community",null,"Sponsored initially, then voluntary following outstanding Ofsted. (DAO revoked)",null,null,"Originally sponsored but conversion delayed due to Swan school.  School ofsted then rated outstanding.  DAO revoked, academy order re-issued.  Conversion delayed and school has no current plans to convert."]
["Longworth Primary School","Pri","Pri",3234,null,"TBC","VA","MAT","Voluntary","MAT","Faringdon learning trust","Consulted to join FLT, School and Trust agreed to pause. May 22"]
["Uffington",null,"Pir",null,null,null,"VC",null,"Voluntary - consulted to join Faringdon Learning Trust",null,"Faringdon learning trust","Faringdon Learning Trust are conuslting to merge with Vale Academy Trust.  Conversion's paused until merger complete"]

{"sheet":"Stats","index":9,"n_rows":51,"n_cols":14,"rows_kept":51,"cut":false,"hidden":false,"merged":[]}
[null,"\"New\" schools refer to schools opened since 2013 (the academies programme start)"]
[null,"Maintained estate BEFORE academies/free schools:",null,null,null,null,"Shows ALL schools incl new schools, today"]
[null,34,"sec schools that were maintained",null,null,{"$f":"G3/$I$7","v":2.564102564102564E-2},{"$f":"COUNTIF(Maintained[Phase],\"Sec\")+COUNTIF(Consulting[Phase],\"Sec\")+COUNTIF(Converting[Phase],\"Sec\")","v":1},"sec schools (maintained)"]
[null,0,"all through that were maintained",null,null,0.84615384615384615,{"$f":"COUNTIF(Converted[Phase],\"Sec\")","v":33},"sec schools converted to academies"]
[null,233,"pri that were maintained",null,null,7.6923076923076927E-2,{"$f":"COUNTIF(NewSchs[Phase],\"Sec\")","v":3},"new sec schools (academies)"]
[null,13,"special that were maintained",null,null,0,{"$f":"COUNTIFS(NewSchs[Phase],\"Sec\",NewSchs[Type of Academy],\"Free School\")","v":0},"sec free schools","Tot Sec","% maint'd","% aca"]
[null,{"$f":"SUM(B3:B6)","v":280},"Total",null,null,2.564102564102564E-2,{"$f":"COUNTIF(NewSchs[Phase],\"Studio\")","v":1},"Studio schools",{"$f":"SUM(G3:G8)","v":39},{"$f":"F3","v":2.564102564102564E-2},{"$f":"(G4+G5+G6+G7+G8)/I7","v":0.97435897435897434}]
[null,null,null,null,null,2.564102564102564E-2,{"$f":"COUNTIF(NewSchs[Phase],\"UTC\")","v":1},"UTCs"]
[null,"\"Conversion\" refers to schools that were maintained ",null,null,null,{"$f":"G9/$I$10","v":0},{"$f":"COUNTIF(Converted[Phase],\"All through\")","v":0},"all through maintained schools","Tot all thru","% maint'd","% aca"]
[null,"but have now converted to academy status",null,null,null,{"$f":"G10/$I$10","v":1},{"$f":"COUNTIFS(NewSchs[Phase],\"all through\", NewSchs[Type of Academy],\"All through\")","v":3},"all through academies",{"$f":"SUM(G9:G10)","v":3},0,1]
[null,"Shows conversions only - does NOT incl. new schs",null,null,null,{"$f":"G11/$I$18","v":0.47107438016528924},{"$f":"COUNTIF(Maintained[Phase],\"Pri\")+COUNTIF(Consulting[Phase],\"Pri\")+COUNTIF(Converting[Phase],\"Pri\")","v":114},"pri maintained schools"]
[null,{"$f":"COUNTIF(Converted[Phase], \"Sec\") + COUNTIF(Converted[Phase], \"All through\")","v":33},"Secondary conversions (/34)",{"$f":"B12/34","v":0.97058823529411764},null,{"$f":"G12/$I$18","v":0},{"$f":"COUNTIF(Maintained[Phase],\"Inf\")+COUNTIF(Consulting[Phase],\"Inf\")","v":0},"infant maintained schools"]
[null,{"$f":"COUNTIF(Converted[Phase], \"Pri\") + COUNTIF(Converted[Phase], \"Inf\") + COUNTIF(Converted[Phase], \"Jun\")","v":116},"Primary (incl Inf + Jun) conversions (/233)",{"$f":"B13/233","v":0.4978540772532189},null,0,{"$f":"COUNTIF(Maintained[Phase],\"Jun\")+COUNTIF(Consulting[Phase],\"Jun\")","v":0},"junior maintained schools"]
[null,{"$f":"COUNTIF(Converted[Phase], \"Spec\")","v":10},"Special conversions (/13)",{"$f":"B14/13","v":0.76923076923076927},null,8.2644628099173556E-3,{"$f":"COUNTIF(Converted[Phase],\"Inf\")","v":2},"infant schs converted to academies"]
[null,null,null,null,null,4.1322314049586778E-3,{"$f":"COUNTIF(Converted[Phase],\"Jun\")","v":1},"junior schs converted to academies"]
[null,"NB pre-schools are NOT included in any of  these statistics",null,null,null,0.46694214876033058,{"$f":"COUNTIF(Converted[Phase],\"Pri\")","v":113},"pri schs converted to academies"]
[null,null,null,null,null,0,{"$f":"COUNTIFS(NewSchs[Phase],\"Pri\",NewSchs[Type of Academy],\"Free School\")","v":0},"pri free schools","Tot Pri","% maint'd","% aca"]
[null,"Academies in progress incl. new schs",null,null,null,4.9586776859504134E-2,{"$f":"COUNTIF(NewSchs[Phase],\"Pri\")-COUNTIFS(NewSchs[Phase],\"Pri\",NewSchs[Type of Academy],\"Free School\")","v":12},"new pri schools (academies)",{"$f":"SUM(G11:G18)","v":242},{"$f":"(G11+G12+G13)/I18","v":0.47107438016528924},{"$f":"(G14+G15+G16+G17+G18)/I18","v":0.52892561983471076}]
[null,{"$f":"COUNTIF(Converting[Phase],\"Sec\")","v":0},"Sec in progress of conversion",null,null,{"$f":"G19/$I$21","v":0.25},{"$f":"COUNTIF(Maintained[Phase],\"Spec\")+COUNTIF(Consulting[Phase],\"Spec\")+COUNTIF(Converting[Phase],\"Spec\")","v":4},"maintained special schools"]
[null,{"$f":"COUNTIF(AppNewSchs[Phase],\"Sec\")","v":0},"new Sec in progress",null,null,{"$f":"G20/$I$21","v":0.625},{"$f":"COUNTIF(Converted[Phase],\"Spec\")","v":10},"special schools (academies)","Tot Spec","% maint'd","% aca"]
[null,{"$f":"COUNTIF(AppNewSchs[Phase],\"Studio\")","v":0},"new Studio","Tot Sec",null,{"$f":"G21/$I$21","v":0.125},{"$f":"COUNTIF(NewSchs[Phase],\"Spec\")","v":2},"new special schools",{"$f":"SUM(G19:G21)","v":16},{"$f":"G19/I21","v":0.25},{"$f":"(G20+G21)/I21","v":0.75}]
[null,{"$f":"COUNTIF(AppNewSchs[Phase],\"UTC\")","v":0},"new UTCs",{"$f":"SUM(B19:B22)","v":0}]
[null,{"$f":"COUNTIF(Converting[Phase],\"All through\")","v":0},"all through in progress of conversion","Tot all thru",null,null,{"$f":"COUNTIF(Nurseries[Phase],\"Foundation Stage\")","v":7},"Nurseries"]
[null,{"$f":"COUNTIF(AppNewSchs[Phase],\"All through\")","v":0},"new all through since 2013",{"$f":"SUM(B23:B24)","v":0}]
[null,{"$f":"COUNTIF(Converting[Phase],\"Pri\")","v":2},"Pri in progress of conversion","Tot Pri",null,null,"Phase","Age range","Total number establishments","Academies","% academies"]
[null,{"$f":"COUNTIF(AppNewSchs[Phase],\"Pri\")","v":1},"new Pri in progress",{"$f":"SUM(B25:B26)","v":3},null,null,"Nursery","Up to 4 years",{"$f":"G23","v":7},0,{"$f":"J26/I26","v":0}]
[null,{"$f":"COUNTIF(Converting[Phase],\"Spec\")","v":1},"Spec in progress of conversion","Tot Spec",null,null,"Primary","Up to 11 years (excl nursery schools)",{"$f":"I18","v":242},{"$f":"G14+G15+G16+G17+G18","v":128},0.52892561983471076]
[null,{"$f":"COUNTIF(AppNewSchs[Phase],\"Spec\")","v":1},"new Spec in progress",{"$f":"SUM(B27:B28)","v":2},null,null,"Secondary","11 – 16 years",{"$f":"COUNTIF(Maintained[Age range],\"11-16\")+COUNTIF(Converted[Age range],\"11-16\")+COUNTIF(NewSchs[Age range],\"11-16\")","v":6},{"$f":"COUNTIF(Converted[Age range],\"11-16\")+COUNTIF(NewSchs[Age range],\"11-16\")","v":6},1,"Tot Sec (combined)","Tot Aca","% Aca"]
[null,null,null,null,null,null,"Secondary","11-18 years",{"$f":"COUNTIF(Maintained[Age range],\"11-18\")+COUNTIF(Converted[Age range],\"11-18\")+COUNTIF(NewSchs[Age range],\"11-18\")","v":31},{"$f":"COUNTIF(Converted[Age range],\"11-18\")+COUNTIF(NewSchs[Age range],\"11-18\")","v":30},0.967741935483871,{"$f":"I28+I29+I30","v":39},{"$f":"J28+J29+J30","v":38},{"$f":"M29/L29","v":0.97435897435897434}]
[null,"New academies (incl. free schs) open since 2013",null,null,"Tot schools",null,"Secondary","14-19 years",{"$f":"COUNTIF(NewSchs[Age range],\"14-19\")+COUNTIF(Converted[Age range],\"14-19\")","v":2},{"$f":"COUNTIF(NewSchs[Age range],\"14-19\")+COUNTIF(Converted[Age range],\"14-19\")","v":2},1]
[null,{"$f":"COUNTIF(NewSchs[Phase],\"Sec\")","v":3},"New Sec since 2013",null,{"$f":"I7+I10+I18+I21","v":300},null,"All through primary and secondary school","Up to 18 years",{"$f":"COUNTIF(NewSchs[Phase],\"all through\")+COUNTIF(Converted[Phase],\"All through\")+COUNTIF(Maintained[Phase],\"all through\")","v":3},{"$f":"COUNTIF(NewSchs[Phase],\"all through\")+COUNTIF(NewSchs[Phase],\"all through (F)\")+COUNTIF(Converted[Phase],\"All through\")","v":3},1]
[null,{"$f":"COUNTIF(NewSchs[Phase],\"Studio\")","v":1},"New Studio",null,"incl nurseries",null,null,"Grand total",{"$f":"SUM(I26:I31)","v":291},{"$f":"SUM(J26:J31)","v":169}]
[null,{"$f":"COUNTIF(NewSchs[Phase],\"UTC\")","v":1},"New UTC",null,{"$f":"E31+G23","v":307},null,null,"Special",{"$f":"I21","v":16},{"$f":"COUNTIF(NewSchs[Phase],\"Spec\")+COUNTIF(NewSchs[Phase],\"Spec (F)\")+COUNTIF(Converted[Phase],\"Spec\")","v":12},{"$f":"J33/I33","v":0.75}]
[null,{"$f":"COUNTIF(NewSchs[Phase],\"all through\")","v":3},"New All-through since 2013",null,null,null,null,"Grand total including special schools:",{"$f":"I32+I33","v":307},{"$f":"J32+J33","v":181},null,"OVERALL STATS"]
[null,{"$f":"COUNTIF(NewSchs[Phase],\"Pri\")","v":12},"New Pri since 2013",null,null,null,null,null,null,null,null,{"$f":"J32/I32","v":0.58075601374570451},"(% of total current schools (not just converted schools) excl special and nursery schools that are academies)"]
[null,{"$f":"COUNTIF(NewSchs[Phase],\"Spec\")","v":2},"New Spec since 2013",null,null,null,null,null,null,null,{"$f":"IF((J27+J28+J29+J30+J31+J33)/E31=L36,\"OK\",\"ERROR\")","v":"OK"},{"$f":"J34/E31","v":0.60333333333333339},"(% of ALL school that are academies, excl nurseries)"]
[]
[]
[]
["Summary of all schools by phase and type"]
[null,"Nursery","*Primary","%","**Secondary","%","***Special","%","Total","%"]
["Academy Conversions",null,{"$f":"B13","v":116},null,{"$f":"G4","v":33},null,{"$f":"B14","v":10},null,{"$f":"C42+E42+G42","v":159},{"$f":"I42/I47","v":0.51791530944625408}]
["Academy Order Made",null,{"$f":"GETPIVOTDATA(\"Trust / sponsor details\",'Converting'!$G$8)","v":3},null,0,null,{"$f":"COUNTIF(Converting[[#All],[Phase]],\"Spec\")","v":1},null,{"$f":"C43+E43+G43","v":4}]
["New schools",null,{"$f":"B35+B34","v":15},null,{"$f":"B32+B33+B31","v":5},null,{"$f":"B36","v":2},null,{"$f":"C44+E44+G44","v":22},{"$f":"I44/I47","v":7.1661237785016291E-2}]
["Total Maintained",7,{"$f":"G11","v":114},{"$f":"C45/241","v":0.47302904564315351},1,{"$f":"E45/41","v":2.4390243902439025E-2},{"$f":"G19","v":4},{"$f":"G45/15","v":0.26666666666666666},{"$f":"B45+C45+E45+G45","v":126},{"$f":"I45/I47","v":0.41042345276872966}]
["Total Academies",null,{"$f":"C42+C44","v":131},{"$f":"C46/241","v":0.54356846473029041},{"$f":"E42+E44","v":38},{"$f":"E46/41","v":0.92682926829268297},{"$f":"G42+G44","v":12},{"$f":"G46/15","v":0.8},{"$f":"C46+E46+G46","v":181},{"$f":"I46/I47","v":0.5895765472312704}]
["Total number of schools",{"$f":"SUM(B42:B46)","v":7},{"$f":"C45+C46","v":245},null,{"$f":"E45+E46","v":39},null,{"$f":"G46+G45","v":16},{"$f":"G47/15","v":1.0666666666666667},{"$f":"I46+I45","v":307},1]
[]
["* Primary includes all through, studio and UTC's."]
["** Secondary includes studio and UTC's"]
["***Special includes OHS & Meadowbrook"]

{"sheet":"Lists","index":10,"n_rows":65,"n_cols":16,"rows_kept":65,"cut":false,"hidden":false,"merged":[]}
["CompanyNames_Numbers:","Company_Numbers",null,"Company_Names",null,null,null,null,"Abbreviations",null,null,null,"List for Trusts to choose from on 'converting' and 'consulting'",null,null,"Actual sorted list used: (without single converter Trusts)"]
["Abingdon Learning Trust (07931886)",{"$f":"MID(A2,FIND(\"(\",A2)+1,FIND(\")\",A2)-FIND(\"(\",A2)-1)","v":"07931886"},null,{"$f":"LEFT(A2,FIND(\"(\",A2)-2)","v":"Abingdon Learning Trust"},null,null,null,null,"ALT",null,null,null,{"$f":"INDEX(Converted[Trust / sponsor details],MATCH(0,INDEX(COUNTIF($M$1:M1,Converted[Trust / sponsor details]),0,0),0))","v":"The Circle Trust"},null,null,"Activate Learning Education Trust"]
["Acer Trust (09591931)","09591931",null,"Acer Trust",null,null,null,null,"Acer",null,null,null,{"$f":"INDEX(Converted[Trust / sponsor details],MATCH(0,INDEX(COUNTIF($M$1:M2,Converted[Trust / sponsor details]),0,0),0))","v":"Ridgeway Education Trust"},null,null,"Aspirations Academy Trust (AAT)"]
["Activate Learning Education Trust (0807909)","0807909",null,"Activate Learning Education Trust",null,null,null,null,"ALET",null,null,null,{"$f":"INDEX(Converted[Trust / sponsor details],MATCH(0,INDEX(COUNTIF($M$1:M3,Converted[Trust / sponsor details]),0,0),0))","v":"Oxford Diocesan Schools Trust"},null,null,"Bernwode Schools Trust"]
["Anthem Schools Trust (07468210)","07468210",null,"Anthem Schools Trust",null,null,null,null,"AST",null,null,null,{"$f":"INDEX(Converted[Trust / sponsor details],MATCH(0,INDEX(COUNTIF($M$1:M4,Converted[Trust / sponsor details]),0,0),0))","v":"Acer Trust"},null,null,"Anthem Schools Trust"]
["Aspirations Academies Trust (7867577)","7867577",null,"Aspirations Academies Trust",null,null,null,null,"AAT",null,null,null,{"$f":"INDEX(Converted[Trust / sponsor details],MATCH(0,INDEX(COUNTIF($M$1:M5,Converted[Trust / sponsor details]),0,0),0))","v":"Eynsham Partnership Academy"}]
["Bernwode Schools Trust (09053713)","09053713",null,"Bernwode Schools Trust",null,null,null,null,"BST",null,null,null,{"$f":"INDEX(Converted[Trust / sponsor details],MATCH(0,INDEX(COUNTIF($M$1:M6,Converted[Trust / sponsor details]),0,0),0))","v":0},null,null,"Didcot Academy of Schools"]
["Burford School (8082185)","8082185",null,"Burford School",null,null,null,null,"Burford",null,null,null,{"$f":"INDEX(Converted[Trust / sponsor details],MATCH(0,INDEX(COUNTIF($M$1:M7,Converted[Trust / sponsor details]),0,0),0))","v":"Faringdon Learning Trust"},null,null,"Dominic Barberi MAC"]
["Cholsey Primary Academy Trust (08722647)","08722647",null,"Cholsey Primary Academy Trust",null,null,null,null,"CPAT",null,null,null,{"$f":"INDEX(Converted[Trust / sponsor details],MATCH(0,INDEX(COUNTIF($M$1:M8,Converted[Trust / sponsor details]),0,0),0))","v":"The Propeller Academy Trust"},null,null,"Eynsham Partnership"]
["Europa School Trust (07649335)","07649335",null,"Europa School Trust",null,null,null,null,"EST"]
["Eynsham Partnership Academy Trust (07939655)","07939655",null,"Eynsham Partnership Academy Trust",null,null,null,null,"EPA"]
["Faringdon Learning Trust (07977368)","07977368",null,"Faringdon Learning Trust",null,null,null,null,"FLT",null,null,null,{"$f":"INDEX(Converted[Trust / sponsor details],MATCH(0,INDEX(COUNTIF($M$1:M9,Converted[Trust / sponsor details]),0,0),0))","v":"River Learning Trust"},null,null,"Faringdon Academy of Schools (FAoS)"]
["Gillots School (07954417)","07954417",null,"Gillots School",null,null,null,null,"Gillotts",null,null,null,{"$f":"INDEX(Converted[Trust / sponsor details],MATCH(0,INDEX(COUNTIF($M$1:M12,Converted[Trust / sponsor details]),0,0),0))","v":"Activate Learning Education Trust"},null,null,"GLF"]
["GLF Schools (07551959)","07551959",null,"GLF Schools",null,null,null,null,"GLF",null,null,null,{"$f":"INDEX(Converted[Trust / sponsor details],MATCH(0,INDEX(COUNTIF($M$1:M13,Converted[Trust / sponsor details]),0,0),0))","v":"The Pope Francis MAC"},null,null,"The Iffley Academy Trust"]
["Ladygrove Park Primary School (08517429)","08517429",null,"Ladygrove Park Primary School",null,null,null,null,"LPPS",null,null,null,{"$f":"INDEX(Converted[Trust / sponsor details],MATCH(0,INDEX(COUNTIF($M$1:M14,Converted[Trust / sponsor details]),0,0),0))","v":"The Gallery Trust"},null,null,"John Mason Academy Trust"]
["Macintyre Academies Trust (08334745)","08334745",null,"Macintyre Academies Trust",null,null,null,null,"MAT",null,null,null,{"$f":"INDEX(Converted[Trust / sponsor details],MATCH(0,INDEX(COUNTIF($M$1:M15,Converted[Trust / sponsor details]),0,0),0))","v":"The Warriner Multi Academy Trust"},null,null,"Propeller Academy Trust"]
["Maiden Erlegh Trust (07548754)","07548754",null,"Maiden Erlegh Trust",null,null,null,null,"MET"]
["Omnia Learning Trust (08346116)","08346116",null,"Omnia Learning Trust",null,null,null,null,"OLT",null,null,null,{"$f":"INDEX(Converted[Trust / sponsor details],MATCH(0,INDEX(COUNTIF($M$1:M16,Converted[Trust / sponsor details]),0,0),0))","v":"Radcliffe Academy Trust"},null,null,"Radcliffe Academy Trust"]
["Oxford Diocesan Schools Trust (08143249)","08143249",null,"Oxford Diocesan Schools Trust",null,null,null,null,"ODST",null,null,null,{"$f":"INDEX(Converted[Trust / sponsor details],MATCH(0,INDEX(COUNTIF($M$1:M18,Converted[Trust / sponsor details]),0,0),0))","v":"GLF Schools"},null,null,"River Learning Trust"]
["Radcliffe Academy Trust (09334026)","09334026",null,"Radcliffe Academy Trust",null,null,null,null,"RAT",null,null,null,{"$f":"INDEX(Converted[Trust / sponsor details],MATCH(0,INDEX(COUNTIF($M$1:M19,Converted[Trust / sponsor details]),0,0),0))","v":"Abingdon Learning Trust (ALT)"},null,null,"Single converter"]
["Ridgeway Education Trust (8104201)","8104201",null,"Ridgeway Education Trust",null,null,null,null,"RET",null,null,null,{"$f":"INDEX(Converted[Trust / sponsor details],MATCH(0,INDEX(COUNTIF($M$1:M20,Converted[Trust / sponsor details]),0,0),0))","v":"Maiden Erlegh Trust"},null,null,"Thame Partnership Academy Trust"]
["River Learning Trust (07966500)","07966500",null,"River Learning Trust",null,null,null,null,"RLT",null,null,null,{"$f":"INDEX(Converted[Trust / sponsor details],MATCH(0,INDEX(COUNTIF($M$1:M21,Converted[Trust / sponsor details]),0,0),0))","v":"United Learning Trust (ULT)"},null,null,"The Mill Academy"]
["St John's Academy Trust (008517255)","008517255",null,"St John's Academy Trust",null,null,null,null,"SJAT",null,null,null,{"$f":"INDEX(Converted[Trust / sponsor details],MATCH(0,INDEX(COUNTIF($M$1:M22,Converted[Trust / sponsor details]),0,0),0))","v":"The Merchant Taylors Oxfordshire Academy Trust Ltd"},null,null,"The Oxford Diocesan Board of Education,The Beecroft Trust, and Oxford Brookes University"]
["Thame Partnership Academy Trust (8154932)","8154932",null,"Thame Partnership Academy Trust",null,null,null,null,"TPAT",null,null,null,{"$f":"INDEX(Converted[Trust / sponsor details],MATCH(0,INDEX(COUNTIF($M$1:M23,Converted[Trust / sponsor details]),0,0),0))","v":"Vale Academy Trust"},null,null,"The Pope Francis MAC"]
["The Circle Trust (11031096)","11031096",null,"The Circle Trust",null,null,null,null,"TCT",null,null,null,{"$f":"INDEX(Converted[Trust / sponsor details],MATCH(0,INDEX(COUNTIF($M$1:M24,Converted[Trust / sponsor details]),0,0),0))","v":"The White Horse Federation"},null,null,"The Warriner Multi Academy Trust"]
["The Gallery Trust (8334718)","8334718",null,"The Gallery Trust",null,null,null,null,"Gallery",null,null,null,{"$f":"INDEX(Converted[Trust / sponsor details],MATCH(0,INDEX(COUNTIF($M$1:M25,Converted[Trust / sponsor details]),0,0),0))","v":"The Mill Academy"},null,null,"United Learning Trust (ULT)"]
["The Langtree School Academy Trust Company (07980335)","07980335",null,"The Langtree School Academy Trust Company",null,null,null,null,"LSATC",null,null,null,{"$f":"INDEX(Converted[Trust / sponsor details],MATCH(0,INDEX(COUNTIF($M$1:M26,Converted[Trust / sponsor details]),0,0),0))","v":"Oxfordshire Primary Education Network (OPEN)"},null,null,"Vale Academy Trust"]
["The Merchant Taylors Oxfordshire Academy Trust Ltd (07727786 )","07727786 ",null,"The Merchant Taylors Oxfordshire Academy Trust Ltd",null,null,null,null,"MTOAT",null,null,null,{"$f":"INDEX(Converted[Trust / sponsor details],MATCH(0,INDEX(COUNTIF($M$1:M27,Converted[Trust / sponsor details]),0,0),0))","v":"Anthem Schools Trust"},null,null,"West Oxford Schools Trust"]
["The Mill Academy (8060721)","8060721",null,"The Mill Academy",null,null,null,null,"Mill",null,null,null,{"$f":"INDEX(Converted[Trust / sponsor details],MATCH(0,INDEX(COUNTIF($M$1:M28,Converted[Trust / sponsor details]),0,0),0))","v":"Aspirations Academy Trust (AAT)"},null,null,"White Horse Federation"]
["The Pope Francis Catholic Multi Academy Company (09113542)","09113542",null,"The Pope Francis Catholic Multi Academy Company",null,null,null,null,"PFMAC",null,null,null,{"$f":"INDEX(Converted[Trust / sponsor details],MATCH(0,INDEX(COUNTIF($M$1:M29,Converted[Trust / sponsor details]),0,0),0))","v":"Thame Partnership Academy Trust"}]
["The Propeller Academy Trust (8340120)","8340120",null,"The Propeller Academy Trust",null,null,null,null,"PAT",null,null,null,{"$f":"INDEX(Converted[Trust / sponsor details],MATCH(0,INDEX(COUNTIF($M$1:M30,Converted[Trust / sponsor details]),0,0),0))","v":"Burford School"}]
["The Warriner Multi Academy Trust (9696059)","9696059",null,"The Warriner Multi Academy Trust",null,null,null,null,"WMAT",null,null,null,{"$f":"INDEX(Converted[Trust / sponsor details],MATCH(0,INDEX(COUNTIF($M$1:M31,Converted[Trust / sponsor details]),0,0),0))","v":"The Langtree School Academy Trust"}]
["The White Horse Federation (08075785)","08075785",null,"The White Horse Federation",null,null,null,null,"WHF",null,null,null,{"$f":"INDEX(Converted[Trust / sponsor details],MATCH(0,INDEX(COUNTIF($M$1:M32,Converted[Trust / sponsor details]),0,0),0))","v":"Gillots School"}]
["United Learning Trust (04439859)","04439859",null,"United Learning Trust",null,null,null,null,"ULT",null,null,null,{"$f":"INDEX(Converted[Trust / sponsor details],MATCH(0,INDEX(COUNTIF($M$1:M33,Converted[Trust / sponsor details]),0,0),0))","v":{"$error":"#N/A"}}]
["Vale Academy Trust (07674473)","07674473",null,"Vale Academy Trust",null,null,null,null,"VAT",null,null,null,{"$f":"INDEX(Converted[Trust / sponsor details],MATCH(0,INDEX(COUNTIF($M$1:M34,Converted[Trust / sponsor details]),0,0),0))","v":{"$error":"#N/A"}}]
["Willowcroft Academy Trust (08516562)","08516562",null,"Willowcroft Academy Trust",null,null,null,null,"WAT",null,null,null,{"$f":"INDEX(Converted[Trust / sponsor details],MATCH(0,INDEX(COUNTIF($M$1:M35,Converted[Trust / sponsor details]),0,0),0))","v":{"$error":"#N/A"}}]
["REMEMBER TO UPDATE THE LIST USING THE BUTTON BELOW IF YOU ADD A TRUST!",null,null,null,null,null,null,null,null,null,null,null,{"$f":"INDEX(Converted[Trust / sponsor details],MATCH(0,INDEX(COUNTIF($M$1:M36,Converted[Trust / sponsor details]),0,0),0))","v":{"$error":"#N/A"}}]
[null,null,null,null,null,null,null,null,null,null,null,null,{"$f":"INDEX(Converted[Trust / sponsor details],MATCH(0,INDEX(COUNTIF($M$1:M37,Converted[Trust / sponsor details]),0,0),0))","v":{"$error":"#N/A"}}]
[null,null,null,null,null,null,null,null,null,null,null,null,{"$f":"INDEX(Converted[Trust / sponsor details],MATCH(0,INDEX(COUNTIF($M$1:M38,Converted[Trust / sponsor details]),0,0),0))","v":{"$error":"#N/A"}}]
[null,null,null,null,null,null,null,null,null,null,null,null,{"$f":"INDEX(Converted[Trust / sponsor details],MATCH(0,INDEX(COUNTIF($M$1:M39,Converted[Trust / sponsor details]),0,0),0))","v":{"$error":"#N/A"}}]
[null,null,null,"Schools approved as sponsors: ",null,null,null,null,null,null,null,null,{"$f":"INDEX(Converted[Trust / sponsor details],MATCH(0,INDEX(COUNTIF($M$1:M40,Converted[Trust / sponsor details]),0,0),0))","v":{"$error":"#N/A"}}]
[null,null,null,"Acer Trust *"]
[null,null,null,"Activate Learning Education Trust *"]
[null,null,null,"Anthem Schools Trust *"]
[null,null,null,"Aspirations Academy Trust (AAT) *",null,null,"Note: * denotes Trusts that have sponsored schools that have been brokered by DfE "]
[]
["Notes on why button used to update range (see comment)",null,null,"Eynsham Partnership *"]
["Button doesn't work for distributed version of spreadsheet",null,null,"Faringdon Learning Trust"]
[null,null,null,"Gillotts School"]
["Updating the range extends the range to include A2 to the",null,null,"GLF Schools (GLF) *"]
["bottom of the list (otherwise, the 'range' would not include all",null,null,"Macintyre Academy Trust"]
["trusts in the list above.",null,null,"Maiden Erlegh Trust*"]
[null,null,null,"Oxford Diocesan Schools Trust (ODST) *"]
[null,null,null,"Pope Francis MAC *"]
[null,null,null,"Propeller Academy Trust *"]
[null,null,null,"Ridgeway Education Trust"]
[null,null,null,"River Learning Trust *"]
[null,null,null,"The Gallery Trust*"]
[null,null,null,"The Mill Academy"]
[null,null,null,"The Warriner Multi Academy Trust"]
[null,null,null,"The White Horse Federation*"]
[null,null,null,"United Learning Trust (ULT) *"]
[null,null,null,"Vale Academy Trust *"]
[null,null,null,"Abingdon Learning Trust (applied but no update 5/01/23)"]
[null,null,null,"Last Updated January 2023"]